Workbook

Sheet Macros Required (hidden)
B2: ="Macros Required - " & 'Terms and Conditions'!B3 -> Macros Required - Business Valuation Model Excel 50
B4: This software uses macros and has been digitally signed.
B6: Macros must be enabled for the software to function.
B8: To adjust macro security levels from Excel go Tools, Macro, Security, Security Level. It is recommended that you select Security Level as Medium. When you open software with macros and Security Level is set as Medium you are presented with a message advising that the software contains macros with a prompt to Disable or Enable Macros
B10: If macros are disabled you cannot access the Input Sheet.
B12: You should close this software and reopen, do not disable macros.
B14: Additional detail on macros is available in Microsoft Excel Help.
B16: By proceeding you acknowledge acceptance of our
B17: Terms and Conditions
B18: =+Welcome!B31 -> Copyright © Bizpep 2010 - www.bizpeponline.com.

Sheet Welcome
B2: ="Welcome" -> Welcome
B3: ='Terms and Conditions'!B3 -> Business Valuation Model Excel 50
B5: Initial input is in blue cells on the Input Sheet. Use the tabs at the bottom of the window to select the Input Sheet. Non-input cells are protected to maintain formula integrity.
B6: ='Terms and Conditions'!B4 -> Software licensed to
B7: ='Terms and Conditions'!B5 -> Not Licensed, Evaluation Mode.
B8: ='Terms and Conditions'!B6 -> Inputs for Current Performance values (gray cells) are limited to Example Business data.
B9: ='Terms and Conditions'!B7 -> Payment is required to Register this software and enable all inputs.
B10: ='Terms and Conditions'!B12 -> For Software Support and additional Business Support Software visit:
B11: ='Terms and Conditions'!B13 -> www.bizpeponline.com
B13: ='Terms and Conditions'!B15 -> Order Now for immediate online delivery and receive a 30 day money back guarantee for just:
B14: ='Terms and Conditions'!B16 -> US$69.00
B15: ='Terms and Conditions'!B17 -> Single User Non-Commercial License - Multi-user licenses attract a 30% discount.
B16: ='Terms and Conditions'!B18 -> Secure online payment is available at:
B17: ='Terms and Conditions'!B19 -> http://www.bizpeponline.com/BusinessValuationReg.html
B19: ='Terms and Conditions'!B20 -> As soon as your transaction is completed you will receive Registration Details by return email.
B22: ='Terms and Conditions'!B22 -> This will register your software and enable all inputs.
B24: ='Terms and Conditions'!$B$23 -> Software which is not correctly licensed exposes individuals and business to serious risk.
B25: by proceeding you acknowledge acceptance of our Terms and Conditions.
B27: ='Terms and Conditions'!$B26 -> You can also try our web based Business Valuation Analysis Module at:
B28: http://www.businessperformanceanalysis.com/
B29: ='Terms and Conditions'!$B28 -> It comes with a free trial period and runs in your browser with no download required.
B31: ='Terms and Conditions'!B10 -> Copyright © Bizpep 2010 - www.bizpeponline.com.

Sheet Input
B5: ="Input - " & 'Terms and Conditions'!B3 -> Input - Business Valuation Model Excel 50
B6: Blue cells allow input. View comments by positioning your mouse over the red marker cell or click the hyperlink for the
B7: Instruction Sheet
B9: Current Operating Performance Data | D9: This section reviews current business performance for a full year.
B11: Business Name or Identifier | C11: Example Business | F11: This appears on the Output Sheets.
B13: Business Revenue | C13: 500000 | D13: Annual business revenue for the current year.
B15: Expenses | C15: Monetary | D15: =+IF(C15=B86,B87,B86) -> Percent | E15: Set the Expense Input as Monetary or Percent.
B16: Variable Costs | E16: Annual costs that vary with the level of revenue.
B17: Materials & Supplies | C17: 10000 | D17: =+IF(D$15=B$87,C17/C$13*100,C17/100*C$13) -> 2 | E17: Cost of items used in the product/service or resold.
B18: Labor excluding Owner | C18: 200000 | D18: 40 | E18: Cost of labor including all benefits and add-ons.
B19: Labor Owner | C19: 50000 | D19: 10 | E19: Cost of an employee who could replace the owner.
B20: Distribution | C20: 20000 | D20: 4 | E20: Cost to get the product/service to the consumer.
B21: Marketing | C21: 10000 | D21: 2 | E21: Cost of marketing and promotion.
B22: Other | C22: 20000 | D22: 4 | E22: Any other costs incurred in the product/service.
B23: Total Variable Costs | C23: =SUM(C17:C22) -> 310000 | D23: 62 | E23: Total Variable Costs and their % of Revenue
B24: Fixed Costs | E24: Annual costs that do not vary with revenue.
B25: Location | C25: 40000 | D25: =+IF(D$15=B$87,C25/C$13*100,C25/100*C$13) -> 8 | E25: Cost of rent, utilities etc. Exclude ownership costs.
B26: Administration | C26: 30000 | D26: 6 | E26: Cost of administration supplies and requirements.
B27: Labor excluding Owner | C27: 50000 | D27: 10 | E27: Cost of labor including all benefits and add-ons.
B28: Labor Owner | C28: 10000 | D28: 2 | E28: Cost of an employee who could replace the owner.
B29: Interest Costs | C29: 0 | D29: 0 | E29: Interest component of loans, Set to 0 for valuation.
B30: Other | C30: 0 | D30: 0 | E30: Any other overhead costs not already included.
B31: Total Fixed Costs | C31: =SUM(C25:C30) -> 130000 | D31: 26 | E31: Total Fixed Costs and their % of Revenue.
B32: Operating Surplus | C32: =+IF(C$15=B$87,100-C23-C31,C13-C23-C31) -> 60000 | D32: 12 | E32: Operating surplus before taxation.
B33: Owner Cash Flow | C33: =+C32+C28+C19 -> 120000 | D33: 24 | E33: Operating surplus to owner including wages.
B36: Forecast Data | D36: Input Relative Indicators to build a 3 Year Forecast.
B38: Relative Indicator | C38: Year 1 | D38: Year 2 | E38: Year 3 | F38: Indicators are Relative to the prior year.
B39: Level of Competition | C39: 1.03 | D39: 1 | E39: 0.97 | F39: >100=Inc, <100=Dec Competition.
B40: Market Strength | C40: 1.05 | D40: 1 | E40: 1 | F40: >100=Inc, <100=Dec Market Strength.
B41: Materials & Supplies Costs | C41: 1.05 | D41: 1.05 | E41: 1 | F41: >100=Inc, <100=Dec base Costs.
B42: Labor Costs | C42: 1 | D42: 1.03 | E42: 1.05 | F42: >100=Inc, <100=Dec base Costs.
B43: Interest Rates | C43: 1 | D43: 1.05 | E43: 0.95 | F43: >100=Inc, <100=Dec base Interest.
B44: Business Market Position | C44: 1.1 | D44: 1.05 | E44: 1.03 | F44: >100=Inc, <100=Dec Business Position.
B45: Variable Costs Efficiency | C45: 1.03 | D45: 1.05 | E45: 1 | F45: >100=Inc, <100=Dec Variable Efficiency.
B46: Fixed Costs Efficiency | C46: 1 | D46: 1.02 | E46: 1.05 | F46: >100=Inc, <100=Dec Fixed Efficiency.
B48: Fixed Costs Flow-on | C48: 0.25 | D48: The % increase in Fixed Costs for each 100% increase in revenue.
B51: Valuation Data
B53: Owners Time Commitment to Business | C53: 1 | D53: Input the percentage of work hours applied to the business.
B54: Owners External Earning Power | C54: 60000 | D54: How much could the owner earn if working outside the business?
B55: Replacement Value of Business Assets | C55: 100000 | D55: What is the value of business assets excluding property.
B56: Life of Assets (years) | C56: 8 | D56: What is the average life of the assets?
B57: Market Value of Property | C57: 0 | D57: How much could you sell the business real estate for?
B58: Other Investment in Business | C58: 190022.5831 | D58: Operating capital, goodwill, etc. This is adjusted by Valuation.
B59: Total Investment | C59: =+C55+C57+C58 -> 290022.5831 | D59: This is the current investment in the business.
B60: Financed Amount | C60: 0 | D60: =+IF(C$15=B$87,D$29/C$60,C$29/C$60) ->  | E60: Input amount financed, interest rate is calculated.
B61: Equity Investment | C61: =+C59-C60 -> 290022.5831 | D61: This is the amount of equity in the business.
B63: Output - Business Valuation Model
B64: Current Expected Valuation is | C64: ='Valuation Analysis'!G31 -> 290022.5831 | D64: refer to Valuation Analysis for details.
B65: Summary outputs are included on the Sensitivity and Valuation Analysis Sheets. Details are in tabular form on the Results Sheets and graphical form on the Chart Sheets. To view comments position your mouse over the red marker cell or click the hyperlink to access the Instruction Sheet. To display Sheets click the associated button or tab.
B66: Output Sheets
B67: Sensitivity Analysis
B68: Valuation Analysis
B69: Expected Results
B70: Optimistic Results
B71: Pessimistic Results
B72: Forecast Revenue Chart
B73: Forecast Return Chart
B74: Operating Surplus Chart
B75: Surplus & Return Chart
B76: =+Welcome!$B$31 -> Copyright © Bizpep 2010 - www.bizpeponline.com.
B86: Monetary
B87: Percent

Sheet Sensitivity Analysis
B5: ="Sensitivity Analysis - " & 'Terms and Conditions'!B3 -> Sensitivity Analysis - Business Valuation Model Excel 50
B6: To test the sensitivity of your forecast input adjustment percentages in the blue cells. Green cells provide Optimistic results, yellow cells Expected, and tan cells Pessimistic. An Output Summary is provided at the bottom of this sheet.
B7: Optimistic, improve the variation of all Relative Indicators by | E7: 0.2 | F7: Go to Valuation
B8: Pessimistic, degrade the variation of all Relative Indicators by | E8: 0.2
C9: Current Year | D9: Year 1 | E9: Year 2 | F9: Year 3 | G9: 3 Year Average
B10: =+Worksheet!B5 -> Business Revenue
B11: Optimistic | C11: =+Worksheet!K5 -> 500000 | D11: =+Worksheet!L5 -> 579687.5 | E11: =+Worksheet!M5 -> 614468.75 | F11: =+Worksheet!N5 -> 660362.6815 | G11: =+Worksheet!O5 -> 618172.9772
B12: Expected | C12: =+Worksheet!C5 -> 500000 | D12: =+Worksheet!D5 -> 560679.6117 | E12: =+Worksheet!E5 -> 588713.5922 | F12: =+Worksheet!F5 -> 625128.866 | G12: =+Worksheet!G5 -> 591507.3566
B13: Pessimistic | C13: =+Worksheet!R5 -> 500000 | D13: =+Worksheet!S5 -> 542084.9421 | E13: =+Worksheet!T5 -> 563768.3398 | F13: =+Worksheet!U5 -> 591494.6516 | G13: =+Worksheet!V5 -> 565782.6445
B14: =+Worksheet!B43 -> Operating Surplus
B15: Optimistic | C15: =+Worksheet!K43 -> 60000 | D15: =+Worksheet!L43 -> 97031.03885 | E15: =+Worksheet!M43 -> 122621.1434 | F15: =+Worksheet!N43 -> 129747.9721 | G15: =+Worksheet!O43 -> 116466.7181
B16: Expected | C16: =+Worksheet!C43 -> 60000 | D16: =+Worksheet!D43 -> 88694.62249 | E16: =+Worksheet!E43 -> 106169.5907 | F16: =+Worksheet!F43 -> 105371.8746 | G16: =+Worksheet!G43 -> 100078.6959
B17: Pessimistic | C17: =+Worksheet!R43 -> 60000 | D17: =+Worksheet!S43 -> 80604.54875 | E17: =+Worksheet!T43 -> 90428.21164 | F17: =+Worksheet!U43 -> 82385.72831 | G17: =+Worksheet!V43 -> 84472.82957
B18: =+Worksheet!B46 -> Owner Cash Flow
B19: Optimistic | C19: =+Worksheet!K46 -> 120000 | D19: =+Worksheet!L46 -> 157031.0389 | E19: =+Worksheet!M46 -> 184421.1434 | F19: =+Worksheet!N46 -> 194637.9721 | G19: =+Worksheet!O46 -> 178696.7181
B20: Expected | C20: =+Worksheet!C46 -> 120000 | D20: =+Worksheet!D46 -> 148694.6225 | E20: =+Worksheet!E46 -> 167969.5907 | F20: =+Worksheet!F46 -> 170261.8746 | G20: =+Worksheet!G46 -> 162308.6959
B21: Pessimistic | C21: =+Worksheet!R46 -> 120000 | D21: =+Worksheet!S46 -> 140604.5487 | E21: =+Worksheet!T46 -> 152228.2116 | F21: =+Worksheet!U46 -> 147275.7283 | G21: =+Worksheet!V46 -> 146702.8296
B22: =+Worksheet!B97 -> Business Return
B23: Optimistic | C23: =+Worksheet!K97 -> 47500 | D23: =+Worksheet!L97 -> 84032.99198 | E23: =+Worksheet!M97 -> 109765.7137 | F23: =+Worksheet!N97 -> 117238.1054 | G23: =+Worksheet!O97 -> 103678.937
B24: Expected | C24: =+Worksheet!C97 -> 47500 | D24: =+Worksheet!D97 -> 75815.37492 | E24: =+Worksheet!E97 -> 93115.13073 | F24: =+Worksheet!F97 -> 92089.81914 | G24: =+Worksheet!G97 -> 87006.77493
B25: Pessimistic | C25: =+Worksheet!R97 -> 47500 | D25: =+Worksheet!S97 -> 67841.51786 | E25: =+Worksheet!T97 -> 77169.65952 | F25: =+Worksheet!U97 -> 68314.28674 | G25: =+Worksheet!V97 -> 71108.48804
B26: Summary
B27: The 3 Year Average Expected Business Return is | C27: =+G24 -> 87006.77493 | D27: per year.
B28: Sensitivity Analysis indicates a Return high of | C28: =+G23 -> 103678.937 | D28: to a low of | E28: =+G25 -> 71108.48804 | F28: per year.
B29: =+Welcome!$B$31 -> Copyright © Bizpep 2010 - www.bizpeponline.com. | C29: =+Welcome!$B$31 -> Copyright © Bizpep 2010 - www.bizpeponline.com. | D29: =+Welcome!$B$31 -> Copyright © Bizpep 2010 - www.bizpeponline.com. | E29: =+Welcome!$B$31 -> Copyright © Bizpep 2010 - www.bizpeponline.com. | F29: =+Welcome!$B$31 -> Copyright © Bizpep 2010 - www.bizpeponline.com. | G29: =+Welcome!$B$31 -> Copyright © Bizpep 2010 - www.bizpeponline.com.

Sheet Valuation Analysis
B5: ="Valuation Analysis - " & 'Terms and Conditions'!B3 -> Valuation Analysis - Business Valuation Model Excel 50
B6: Input your desired Return on Investment to generate a Valuation. To Update the Return calculations input your Valuation and click the Update Button. All input is in the blue cells. Green cells provide Optimistic results, yellow cells Expected, and tan cells Pessimistic. An Output Summary is provided at the bottom of this sheet.
B8: Finance is currently set at | C8: Interest | D8: =IF(Input!C15=Input!B86,Input!C29,Input!D29) -> 0 | E8: Amount | F8: =+Input!C60 -> 0
B9: (Set Interest & Amount to 0 for initial Valuation) | C9: Adjust Interest Cost | E9: Adjust Finance Amount
B11: Sensitivity is currently set at | C11: Optimistic | D11: =+'Sensitivity Analysis'!E7 -> 0.2 | E11: Pessimistic | F11: =+'Sensitivity Analysis'!E8 -> 0.2
C12: Adjust Sensitivity
B14: Total Investment is currently set at | D14: =+Input!$C59 -> 290022.5831 | E14: This is used for Return Calculations.
B16: Business Return | C16: Current Year | D16: Year 1 | E16: Year 2 | F16: Year 3 | G16: 3 Year Average
B17: Optimistic | C17: =+Worksheet!K97 -> 47500 | D17: =+Worksheet!L97 -> 84032.99198 | E17: =+Worksheet!M97 -> 109765.7137 | F17: =+Worksheet!N97 -> 117238.1054 | G17: =+Worksheet!O97 -> 103678.937
B18: % Return on Total Investment | C18: =+Worksheet!K99 -> 0.1637803494 | D18: =+Worksheet!L99 -> 0.2897463745 | E18: =+Worksheet!M99 -> 0.3784729884 | F18: =+Worksheet!N99 -> 0.4042378497 | G18: =+Worksheet!O99 -> 0.3574857376
B19: Expected | C19: =+Worksheet!C97 -> 47500 | D19: =+Worksheet!D97 -> 75815.37492 | E19: =+Worksheet!E97 -> 93115.13073 | F19: =+Worksheet!F97 -> 92089.81914 | G19: =+Worksheet!G97 -> 87006.77493
B20: =+B18 -> % Return on Total Investment | C20: =+Worksheet!C99 -> 0.1637803494 | D20: =+Worksheet!D99 -> 0.2614119704 | E20: =+Worksheet!E99 -> 0.3210616557 | F20: =+Worksheet!F99 -> 0.3175263738 | G20: =+Worksheet!G99 -> 0.3
B21: Pessimistic | C21: =+Worksheet!R97 -> 47500 | D21: =+Worksheet!S97 -> 67841.51786 | E21: =+Worksheet!T97 -> 77169.65952 | F21: =+Worksheet!U97 -> 68314.28674 | G21: =+Worksheet!V97 -> 71108.48804
B22: =+B18 -> % Return on Total Investment | C22: =+Worksheet!R99 -> 0.1637803494 | D22: =+Worksheet!S99 -> 0.2339180526 | E22: =+Worksheet!T99 -> 0.2660815537 | F22: =+Worksheet!U99 -> 0.2355481632 | G22: =+Worksheet!V99 -> 0.2451825899
B24: For an average 3 Year Return on Investment of | C24: 0.3 | D24: Input your required Return on Investment.
B25: Expected Return results in a Valuation of | C25: =+G19/C$24 -> 290022.5831 | F25: =+C25 -> 290022.5831 | G25: =+F25-Input!C$55-Input!C$57 -> 190022.5831
B26: Optimistic Return results in a Valuation of | C26: =+G17/C$24 -> 345596.4567
B27: Pessimistic Return results in a Valuation of | C27: =+G21/C$24 -> 237028.2935 | D27: Input your Valuation and click Update Button
B28: Summary
B29: The Average Expected Return from the business is | C29: =+G19 -> 87006.77493 | D29: per year.
B30: Sensitivity Analysis indicates a Return high of | C30: =+G17 -> 103678.937 | D30: to a low of | E30: =+G21 -> 71108.48804 | F30: per year.
B31: An average 3 Year Return on Investment of | C31: =+C24 -> 0.3 | D31: gives an Expected Valuation of | G31: =+C25 -> 290022.5831
B32: Sensitivity Analysis indicates a Valuation high of | C32: =+C26 -> 345596.4567 | D32: to a low of | E32: =+C27 -> 237028.2935 | F32: .
B33: =+Welcome!$B$31 -> Copyright © Bizpep 2010 - www.bizpeponline.com. | C33: =+Welcome!$B$31 -> Copyright © Bizpep 2010 - www.bizpeponline.com. | D33: =+Welcome!$B$31 -> Copyright © Bizpep 2010 - www.bizpeponline.com. | E33: =+Welcome!$B$31 -> Copyright © Bizpep 2010 - www.bizpeponline.com. | F33: =+Welcome!$B$31 -> Copyright © Bizpep 2010 - www.bizpeponline.com. | G33: =+Welcome!$B$31 -> Copyright © Bizpep 2010 - www.bizpeponline.com.

Sheet Expected Results
B2: ="Expected Results - " & 'Terms and Conditions'!B3 -> Expected Results - Business Valuation Model Excel 50
B3: =Worksheet!B2 -> Expected Forecast
B4: =Worksheet!B3 -> Example Business
C5: Current Year | D5: Year 1 | E5: Year 2 | F5: Year 3 | G5: 3 Year Average
B6: =Worksheet!B5 -> Business Revenue | C6: =Worksheet!C5 -> 500000 | D6: =Worksheet!D5 -> 560679.6117 | E6: =Worksheet!E5 -> 588713.5922 | F6: =Worksheet!F5 -> 625128.866 | G6: =Worksheet!G5 -> 591507.3566
B7: =Worksheet!B6 -> Expenses
B8: =Worksheet!B7 -> Variable Costs
B9: =Worksheet!B8 -> Materials & Supplies | C9: =Worksheet!C8 -> 10000 | D9: =Worksheet!D8 -> 11431.33189 | E9: =Worksheet!E8 -> 12002.89848 | F9: =Worksheet!F8 -> 12745.34581 | G9: =Worksheet!G8 -> 12059.85873
B10: =Worksheet!B9 -> % Revenue | C10: =Worksheet!C9 -> 0.02 | D10: =Worksheet!D9 -> 0.02038834951 | E10: =Worksheet!E9 -> 0.02038834951 | F10: =Worksheet!F9 -> 0.02038834951 | G10: =Worksheet!G9 -> 0.02038834951
B11: =Worksheet!B10 -> Labor excluding Owner | C11: =Worksheet!C10 -> 200000 | D11: =Worksheet!D10 -> 222477.9668 | E11: =Worksheet!E10 -> 229085.7617 | F11: =Worksheet!F10 -> 258404.2503 | G11: =Worksheet!G10 -> 236655.9929
B12: =Worksheet!B11 -> % Revenue | C12: =Worksheet!C11 -> 0.4 | D12: =Worksheet!D11 -> 0.3968005296 | E12: =Worksheet!E11 -> 0.3891293912 | F12: =Worksheet!F11 -> 0.4133615713 | G12: =Worksheet!G11 -> 0.4000896866
B13: =Worksheet!B12 -> Labor Owner | C13: =Worksheet!C12 -> 50000 | D13: =Worksheet!D12 -> 49696.60194 | E13: =Worksheet!E12 -> 51254.04412 | F13: =Worksheet!F12 -> 54160.18269 | G13: =Worksheet!G12 -> 51703.60958
B14: =Worksheet!B13 -> % Revenue | C14: =Worksheet!C13 -> 0.1 | D14: =Worksheet!D13 -> 0.08863636364 | E14: =Worksheet!E13 -> 0.08706108504 | F14: =Worksheet!F13 -> 0.0866384287 | G14: =Worksheet!G13 -> 0.08740991807
B15: =Worksheet!B14 -> Distribution | C15: =Worksheet!C14 -> 20000 | D15: =Worksheet!D14 -> 21773.9655 | E15: =Worksheet!E14 -> 21773.9655 | F15: =Worksheet!F14 -> 23120.80873 | G15: =Worksheet!G14 -> 22222.91324
B16: =Worksheet!B15 -> % Revenue | C16: =Worksheet!C15 -> 0.04 | D16: =Worksheet!D15 -> 0.03883495146 | E16: =Worksheet!E15 -> 0.03698566805 | F16: =Worksheet!F15 -> 0.03698566805 | G16: =Worksheet!G15 -> 0.03756996932
B17: =Worksheet!B16 -> Marketing | C17: =Worksheet!C16 -> 10000 | D17: =Worksheet!D16 -> 10886.98275 | E17: =Worksheet!E16 -> 10886.98275 | F17: =Worksheet!F16 -> 11560.40436 | G17: =Worksheet!G16 -> 11111.45662
B18: =Worksheet!B17 -> % Revenue | C18: =Worksheet!C17 -> 0.02 | D18: =Worksheet!D17 -> 0.01941747573 | E18: =Worksheet!E17 -> 0.01849283403 | F18: =Worksheet!F17 -> 0.01849283403 | G18: =Worksheet!G17 -> 0.01878498466
B19: =Worksheet!B18 -> Other | C19: =Worksheet!C18 -> 20000 | D19: =Worksheet!D18 -> 21773.9655 | E19: =Worksheet!E18 -> 21773.9655 | F19: =Worksheet!F18 -> 23120.80873 | G19: =Worksheet!G18 -> 22222.91324
B20: =Worksheet!B19 -> % Revenue | C20: =Worksheet!C19 -> 0.04 | D20: =Worksheet!D19 -> 0.03883495146 | E20: =Worksheet!E19 -> 0.03698566805 | F20: =Worksheet!F19 -> 0.03698566805 | G20: =Worksheet!G19 -> 0.03756996932
B21: =Worksheet!B20 -> Total Variable Costs | C21: =Worksheet!C20 -> 310000 | D21: =Worksheet!D20 -> 338040.8144 | E21: =Worksheet!E20 -> 346777.6181 | F21: =Worksheet!F20 -> 383111.8006 | G21: =Worksheet!G20 -> 355976.7444
B22: Total Variable Costs % | C22: =Worksheet!C21 -> 0.62 | D22: =Worksheet!D21 -> 0.6029126214 | E22: =Worksheet!E21 -> 0.5890429958 | F22: =Worksheet!F21 -> 0.6128525196 | G22: =Worksheet!G21 -> 0.6018128775
B23: Gross Profit | C23: =Worksheet!C22 -> 190000 | D23: =Worksheet!D22 -> 222638.7972 | E23: =Worksheet!E22 -> 241935.9742 | F23: =Worksheet!F22 -> 242017.0654 | G23: =Worksheet!G22 -> 235530.6123
B24: Gross Profit % | C24: =Worksheet!C23 -> 0.38 | D24: =Worksheet!D23 -> 0.3970873786 | E24: =Worksheet!E23 -> 0.4109570042 | F24: =Worksheet!F23 -> 0.3871474804 | G24: =Worksheet!G23 -> 0.3981871225
B25: Mark-up Equivalent | C25: =Worksheet!C24 -> 0.6129032258 | D25: =Worksheet!D24 -> 0.6586151369 | E25: =Worksheet!E24 -> 0.6976689428 | F25: =Worksheet!F24 -> 0.6317139409 | G25: =Worksheet!G24 -> 0.6616460653
B26: =Worksheet!B25 -> Fixed Costs
B27: =Worksheet!B26 -> Location | C27: =Worksheet!C26 -> 40000 | D27: =Worksheet!D26 -> 41213.59223 | E27: =Worksheet!E26 -> 41774.27184 | F27: =Worksheet!F26 -> 42502.57732 | G27: =Worksheet!G26 -> 41830.14713
B28: =Worksheet!B27 -> % Revenue | C28: =Worksheet!C27 -> 0.08 | D28: =Worksheet!D27 -> 0.07350649351 | E28: =Worksheet!E27 -> 0.07095856524 | F28: =Worksheet!F27 -> 0.06799010513 | G28: =Worksheet!G27 -> 0.07071788147
B29: =Worksheet!B28 -> Administration | C29: =Worksheet!C28 -> 30000 | D29: =Worksheet!D28 -> 30910.19417 | E29: =Worksheet!E28 -> 30716.37636 | F29: =Worksheet!F28 -> 29763.70961 | G29: =Worksheet!G28 -> 30463.42671
B30: =Worksheet!B29 -> % Revenue | C30: =Worksheet!C29 -> 0.06 | D30: =Worksheet!D29 -> 0.05512987013 | E30: =Worksheet!E29 -> 0.05217541562 | F30: =Worksheet!F29 -> 0.04761211844 | G30: =Worksheet!G29 -> 0.05150134884
B31: =Worksheet!B30 -> Labor excluding Owner | C31: =Worksheet!C30 -> 50000 | D31: =Worksheet!D30 -> 51516.99029 | E31: =Worksheet!E30 -> 52729.77941 | F31: =Worksheet!F30 -> 53649.08657 | G31: =Worksheet!G30 -> 52631.95209
B32: =Worksheet!B31 -> % Revenue | C32: =Worksheet!C31 -> 0.1 | D32: =Worksheet!D31 -> 0.09188311688 | E32: =Worksheet!E31 -> 0.08956779682 | F32: =Worksheet!F31 -> 0.08582084349 | G32: =Worksheet!G31 -> 0.08897937025
B33: =Worksheet!B32 -> Labor Owner | C33: =Worksheet!C32 -> 10000 | D33: =Worksheet!D32 -> 10303.39806 | E33: =Worksheet!E32 -> 10545.95588 | F33: =Worksheet!F32 -> 10729.81731 | G33: =Worksheet!G32 -> 10526.39042
B34: =Worksheet!B33 -> % Revenue | C34: =Worksheet!C33 -> 0.02 | D34: =Worksheet!D33 -> 0.01837662338 | E34: =Worksheet!E33 -> 0.01791355936 | F34: =Worksheet!F33 -> 0.0171641687 | G34: =Worksheet!G33 -> 0.01779587405
B35: =Worksheet!B34 -> Interest Costs | C35: =Worksheet!C34 -> 0 | D35: =Worksheet!D34 -> 0 | E35: =Worksheet!E34 -> 0 | F35: =Worksheet!F34 -> 0 | G35: =Worksheet!G34 -> 0
B36: =Worksheet!B35 -> % Revenue | C36: =Worksheet!C35 -> 0 | D36: =Worksheet!D35 -> 0 | E36: =Worksheet!E35 -> 0 | F36: =Worksheet!F35 -> 0 | G36: =Worksheet!G35 -> 0
B37: =Worksheet!B36 -> Other | C37: =Worksheet!C36 -> 0 | D37: =Worksheet!D36 -> 0 | E37: =Worksheet!E36 -> 0 | F37: =Worksheet!F36 -> 0 | G37: =Worksheet!G36 -> 0
B38: =Worksheet!B37 -> % Revenue | C38: =Worksheet!C37 -> 0 | D38: =Worksheet!D37 -> 0 | E38: =Worksheet!E37 -> 0 | F38: =Worksheet!F37 -> 0 | G38: =Worksheet!G37 -> 0
B39: =Worksheet!B38 -> Total Fixed Costs | C39: =Worksheet!C38 -> 130000 | D39: =Worksheet!D38 -> 133944.1748 | E39: =Worksheet!E38 -> 135766.3835 | F39: =Worksheet!F38 -> 136645.1908 | G39: =Worksheet!G38 -> 135451.9164
B40: Total Fixed Costs % | C40: =Worksheet!C39 -> 0.26 | D40: =Worksheet!D39 -> 0.2388961039 | E40: =Worksheet!E39 -> 0.230615337 | F40: =Worksheet!F39 -> 0.2185872358 | G40: =Worksheet!G39 -> 0.2289944746
B42: Total Expenses | C42: =Worksheet!C41 -> 440000 | D42: =Worksheet!D41 -> 471984.9892 | E42: =Worksheet!E41 -> 482544.0016 | F42: =Worksheet!F41 -> 519756.9914 | G42: =Worksheet!G41 -> 491428.6607
B44: =Worksheet!B43 -> Operating Surplus | C44: =Worksheet!C43 -> 60000 | D44: =Worksheet!D43 -> 88694.62249 | E44: =Worksheet!E43 -> 106169.5907 | F44: =Worksheet!F43 -> 105371.8746 | G44: =Worksheet!G43 -> 100078.6959
B45: Operating Surplus % | C45: =Worksheet!C44 -> 0.12 | D45: =Worksheet!D44 -> 0.1581912747 | E45: =Worksheet!E44 -> 0.1803416671 | F45: =Worksheet!F44 -> 0.1685602446 | G45: =Worksheet!G44 -> 0.1691926479
B47: =Worksheet!B46 -> Owner Cash Flow | C47: =Worksheet!C46 -> 120000 | D47: =Worksheet!D46 -> 148694.6225 | E47: =Worksheet!E46 -> 167969.5907 | F47: =Worksheet!F46 -> 170261.8746 | G47: =Worksheet!G46 -> 162308.6959
B48: Owner Cash Flow % | C48: =Worksheet!C47 -> 0.24 | D48: =Worksheet!D47 -> 0.2652042618 | E48: =Worksheet!E47 -> 0.2853163115 | F48: =Worksheet!F47 -> 0.272362842 | G48: =Worksheet!G47 -> 0.27439844
B49: =Worksheet!B94 -> LESS
B50: Depreciation Allowance | C50: =Worksheet!C95 -> 12500 | D50: =Worksheet!D95 -> 12879.24757 | E50: =Worksheet!E95 -> 13054.45995 | F50: =Worksheet!F95 -> 13282.05541 | G50: =Worksheet!G95 -> 13071.92098
B51: Owners External Earning Power | C51: =Worksheet!C96 -> 60000 | D51: =Worksheet!D96 -> 60000 | E51: =Worksheet!E96 -> 61800 | F51: =Worksheet!F96 -> 64890 | G51: =Worksheet!G96 -> 62230
B52: Business Return | C52: =Worksheet!C97 -> 47500 | D52: =Worksheet!D97 -> 75815.37492 | E52: =Worksheet!E97 -> 93115.13073 | F52: =Worksheet!F97 -> 92089.81914 | G52: =Worksheet!G97 -> 87006.77493
B53: Return on Sales | C53: =Worksheet!C98 -> 0.095 | D53: =Worksheet!D98 -> 0.1352204955 | E53: =Worksheet!E98 -> 0.1581671155 | F53: =Worksheet!F98 -> 0.1473133367 | G53: =Worksheet!G98 -> 0.1470933099
B54: =+Worksheet!B80 -> Total Investment | C54: =+Worksheet!D80 -> 290022.5831
B55: Return on Total Investment | C55: =Worksheet!C99 -> 0.1637803494 | D55: =Worksheet!D99 -> 0.2614119704 | E55: =Worksheet!E99 -> 0.3210616557 | F55: =Worksheet!F99 -> 0.3175263738 | G55: =Worksheet!G99 -> 0.3
B56: =+Welcome!$B$31 -> Copyright © Bizpep 2010 - www.bizpeponline.com. | C56: =+Welcome!$B$31 -> Copyright © Bizpep 2010 - www.bizpeponline.com. | D56: =+Welcome!$B$31 -> Copyright © Bizpep 2010 - www.bizpeponline.com. | E56: =+Welcome!$B$31 -> Copyright © Bizpep 2010 - www.bizpeponline.com. | F56: =+Welcome!$B$31 -> Copyright © Bizpep 2010 - www.bizpeponline.com. | G56: =+Welcome!$B$31 -> Copyright © Bizpep 2010 - www.bizpeponline.com.

Sheet Optimistic Results
B2: ="Optimistic Results - " & 'Terms and Conditions'!B3 -> Optimistic Results - Business Valuation Model Excel 50
B3: =Worksheet!J2 -> Optimistic Forecast improved by | C3: =Worksheet!K2 -> 0.2
B4: =Worksheet!J3 -> Example Business
C5: =Worksheet!K4 -> Current Year | D5: =Worksheet!L4 -> Year 1 | E5: =Worksheet!M4 -> Year 2 | F5: =Worksheet!N4 -> Year 3 | G5: =Worksheet!O4 -> 3 Year Average
B6: =Worksheet!J5 -> Business Revenue | C6: =Worksheet!K5 -> 500000 | D6: =Worksheet!L5 -> 579687.5 | E6: =Worksheet!M5 -> 614468.75 | F6: =Worksheet!N5 -> 660362.6815 | G6: =Worksheet!O5 -> 618172.9772
B7: =Worksheet!J6 -> Expenses
B8: =Worksheet!J7 -> Variable Costs
B9: =Worksheet!J8 -> Materials & Supplies | C9: =Worksheet!K8 -> 10000 | D9: =Worksheet!L8 -> 11750.4223 | E9: =Worksheet!M8 -> 12337.94341 | F9: =Worksheet!N8 -> 13259.44956 | G9: =Worksheet!O8 -> 12449.27176
B10: =Worksheet!J9 -> % Revenue | C10: =Worksheet!K9 -> 0.02 | D10: =Worksheet!L9 -> 0.02027027027 | E10: =Worksheet!M9 -> 0.02007904131 | F10: =Worksheet!N9 -> 0.02007904131 | G10: =Worksheet!O9 -> 0.02013881586
B11: =Worksheet!J10 -> Labor excluding Owner | C11: =Worksheet!K10 -> 200000 | D11: =Worksheet!L10 -> 230170.397 | E11: =Worksheet!M10 -> 235320.7776 | F11: =Worksheet!N10 -> 265969.2734 | G11: =Worksheet!O10 -> 243820.1493
B12: =Worksheet!J11 -> % Revenue | C12: =Worksheet!K11 -> 0.4 | D12: =Worksheet!L11 -> 0.3970594449 | E12: =Worksheet!M11 -> 0.382966225 | F12: =Worksheet!N11 -> 0.4027624226 | G12: =Worksheet!O11 -> 0.3944205883
B13: =Worksheet!J12 -> Labor Owner | C13: =Worksheet!K12 -> 50000 | D13: =Worksheet!L12 -> 49601.5625 | E13: =Worksheet!M12 -> 51165.70892 | F13: =Worksheet!N12 -> 54229.8967 | G13: =Worksheet!O12 -> 51665.72271
B14: =Worksheet!J13 -> % Revenue | C14: =Worksheet!K13 -> 0.1 | D14: =Worksheet!L13 -> 0.08556603774 | E14: =Worksheet!M13 -> 0.08326820351 | F14: =Worksheet!N13 -> 0.08212138302 | G14: =Worksheet!O13 -> 0.08357809968
B15: =Worksheet!J14 -> Distribution | C15: =Worksheet!K14 -> 20000 | D15: =Worksheet!L14 -> 22381.75676 | E15: =Worksheet!M14 -> 22381.75676 | F15: =Worksheet!N14 -> 24053.42324 | G15: =Worksheet!O14 -> 22938.97892
B16: =Worksheet!J15 -> % Revenue | C16: =Worksheet!K15 -> 0.04 | D16: =Worksheet!L15 -> 0.03861003861 | E16: =Worksheet!M15 -> 0.03642456473 | F16: =Worksheet!N15 -> 0.03642456473 | G16: =Worksheet!O15 -> 0.03710770248
B17: =Worksheet!J16 -> Marketing | C17: =Worksheet!K16 -> 10000 | D17: =Worksheet!L16 -> 11190.87838 | E17: =Worksheet!M16 -> 11190.87838 | F17: =Worksheet!N16 -> 12026.71162 | G17: =Worksheet!O16 -> 11469.48946
B18: =Worksheet!J17 -> % Revenue | C18: =Worksheet!K17 -> 0.02 | D18: =Worksheet!L17 -> 0.01930501931 | E18: =Worksheet!M17 -> 0.01821228236 | F18: =Worksheet!N17 -> 0.01821228236 | G18: =Worksheet!O17 -> 0.01855385124
B19: =Worksheet!J18 -> Other | C19: =Worksheet!K18 -> 20000 | D19: =Worksheet!L18 -> 22381.75676 | E19: =Worksheet!M18 -> 22381.75676 | F19: =Worksheet!N18 -> 24053.42324 | G19: =Worksheet!O18 -> 22938.97892
B20: =Worksheet!J19 -> % Revenue | C20: =Worksheet!K19 -> 0.04 | D20: =Worksheet!L19 -> 0.03861003861 | E20: =Worksheet!M19 -> 0.03642456473 | F20: =Worksheet!N19 -> 0.03642456473 | G20: =Worksheet!O19 -> 0.03710770248
B21: =Worksheet!J20 -> Total Variable Costs | C21: =Worksheet!K20 -> 310000 | D21: =Worksheet!L20 -> 347476.7736 | E21: =Worksheet!M20 -> 354778.8218 | F21: =Worksheet!N20 -> 393592.1778 | G21: =Worksheet!O20 -> 365282.5911
B22: =Worksheet!J21 -> Total Variable Costs % | C22: =Worksheet!K21 -> 0.62 | D22: =Worksheet!L21 -> 0.5994208494 | E22: =Worksheet!M21 -> 0.5773748816 | F22: =Worksheet!N21 -> 0.5960242588 | G22: =Worksheet!O21 -> 0.59090676
B23: =Worksheet!J22 -> Gross Profit | C23: =Worksheet!K22 -> 190000 | D23: =Worksheet!L22 -> 232210.7264 | E23: =Worksheet!M22 -> 259689.9282 | F23: =Worksheet!N22 -> 266770.5038 | G23: =Worksheet!O22 -> 252890.3861
B24: =Worksheet!J23 -> Gross Profit % | C24: =Worksheet!K23 -> 0.38 | D24: =Worksheet!L23 -> 0.4005791506 | E24: =Worksheet!M23 -> 0.4226251184 | F24: =Worksheet!N23 -> 0.4039757412 | G24: =Worksheet!O23 -> 0.40909324
B25: =Worksheet!J24 -> Mark-up Equivalent | C25: =Worksheet!K24 -> 0.6129032258 | D25: =Worksheet!L24 -> 0.6682769726 | E25: =Worksheet!M24 -> 0.7319769734 | F25: =Worksheet!N24 -> 0.6777840588 | G25: =Worksheet!O24 -> 0.6923143678
B26: =Worksheet!J25 -> Fixed Costs
B27: =Worksheet!J26 -> Location | C27: =Worksheet!K26 -> 40000 | D27: =Worksheet!L26 -> 41593.75 | E27: =Worksheet!M26 -> 42289.375 | F27: =Worksheet!N26 -> 43207.25363 | G27: =Worksheet!O26 -> 42363.45954
B28: =Worksheet!J27 -> % Revenue | C28: =Worksheet!K27 -> 0.08 | D28: =Worksheet!L27 -> 0.07175202156 | E28: =Worksheet!M27 -> 0.06882266185 | F28: =Worksheet!N27 -> 0.06542958111 | G28: =Worksheet!O27 -> 0.06853010582
B29: =Worksheet!J28 -> Administration | C29: =Worksheet!K28 -> 30000 | D29: =Worksheet!L28 -> 31195.3125 | E29: =Worksheet!M28 -> 30973.66333 | F29: =Worksheet!N28 -> 29854.65822 | G29: =Worksheet!O28 -> 30674.54468
B30: =Worksheet!J29 -> % Revenue | C30: =Worksheet!K29 -> 0.06 | D30: =Worksheet!L29 -> 0.05381401617 | E30: =Worksheet!M29 -> 0.05040722304 | F30: =Worksheet!N29 -> 0.04520948724 | G30: =Worksheet!O29 -> 0.04962129666
B31: =Worksheet!J30 -> Labor excluding Owner | C31: =Worksheet!K30 -> 50000 | D31: =Worksheet!L30 -> 51992.1875 | E31: =Worksheet!M30 -> 53171.45538 | F31: =Worksheet!N30 -> 53300.51648 | G31: =Worksheet!O30 -> 52821.38646
B32: =Worksheet!J31 -> % Revenue | C32: =Worksheet!K31 -> 0.1 | D32: =Worksheet!L31 -> 0.08969002695 | E32: =Worksheet!M31 -> 0.08653239955 | F32: =Worksheet!N31 -> 0.08071400455 | G32: =Worksheet!O31 -> 0.08544758248
B33: =Worksheet!J32 -> Labor Owner | C33: =Worksheet!K32 -> 10000 | D33: =Worksheet!L32 -> 10398.4375 | E33: =Worksheet!M32 -> 10634.29108 | F33: =Worksheet!N32 -> 10660.1033 | G33: =Worksheet!O32 -> 10564.27729
B34: =Worksheet!J33 -> % Revenue | C34: =Worksheet!K33 -> 0.02 | D34: =Worksheet!L33 -> 0.01793800539 | E34: =Worksheet!M33 -> 0.01730647991 | F34: =Worksheet!N33 -> 0.01614280091 | G34: =Worksheet!O33 -> 0.0170895165
B35: =Worksheet!J34 -> Interest Costs | C35: =Worksheet!K34 -> 0 | D35: =Worksheet!L34 -> 0 | E35: =Worksheet!M34 -> 0 | F35: =Worksheet!N34 -> 0 | G35: =Worksheet!O34 -> 0
B36: =Worksheet!J35 -> % Revenue | C36: =Worksheet!K35 -> 0 | D36: =Worksheet!L35 -> 0 | E36: =Worksheet!M35 -> 0 | F36: =Worksheet!N35 -> 0 | G36: =Worksheet!O35 -> 0
B37: =Worksheet!J36 -> Other | C37: =Worksheet!K36 -> 0 | D37: =Worksheet!L36 -> 0 | E37: =Worksheet!M36 -> 0 | F37: =Worksheet!N36 -> 0 | G37: =Worksheet!O36 -> 0
B38: =Worksheet!J37 -> % Revenue | C38: =Worksheet!K37 -> 0 | D38: =Worksheet!L37 -> 0 | E38: =Worksheet!M37 -> 0 | F38: =Worksheet!N37 -> 0 | G38: =Worksheet!O37 -> 0
B39: =Worksheet!J38 -> Total Fixed Costs | C39: =Worksheet!K38 -> 130000 | D39: =Worksheet!L38 -> 135179.6875 | E39: =Worksheet!M38 -> 137068.7848 | F39: =Worksheet!N38 -> 137022.5316 | G39: =Worksheet!O38 -> 136423.668
B40: =Worksheet!J39 -> Total Fixed Costs % | C40: =Worksheet!K39 -> 0.26 | D40: =Worksheet!L39 -> 0.2331940701 | E40: =Worksheet!M39 -> 0.2230687643 | F40: =Worksheet!N39 -> 0.2074958738 | G40: =Worksheet!O39 -> 0.2206885015
B42: =Worksheet!J41 -> Total Expenses | C42: =Worksheet!K41 -> 440000 | D42: =Worksheet!L41 -> 482656.4611 | E42: =Worksheet!M41 -> 491847.6066 | F42: =Worksheet!N41 -> 530614.7094 | G42: =Worksheet!O41 -> 501706.259
B44: =Worksheet!J43 -> Operating Surplus | C44: =Worksheet!K43 -> 60000 | D44: =Worksheet!L43 -> 97031.03885 | E44: =Worksheet!M43 -> 122621.1434 | F44: =Worksheet!N43 -> 129747.9721 | G44: =Worksheet!O43 -> 116466.7181
B45: =Worksheet!J44 -> Operating Surplus % | C45: =Worksheet!K44 -> 0.12 | D45: =Worksheet!L44 -> 0.1673850805 | E45: =Worksheet!M44 -> 0.199556354 | F45: =Worksheet!N44 -> 0.1964798674 | G45: =Worksheet!O44 -> 0.1884047385
B47: =Worksheet!J46 -> Owner Cash Flow | C47: =Worksheet!K46 -> 120000 | D47: =Worksheet!L46 -> 157031.0389 | E47: =Worksheet!M46 -> 184421.1434 | F47: =Worksheet!N46 -> 194637.9721 | G47: =Worksheet!O46 -> 178696.7181
B48: =Worksheet!J47 -> Owner Cash Flow % | C48: =Worksheet!K47 -> 0.24 | D48: =Worksheet!L47 -> 0.2708891236 | E48: =Worksheet!M47 -> 0.3001310375 | F48: =Worksheet!N47 -> 0.2947440514 | G48: =Worksheet!O47 -> 0.2890723547
B49: =Worksheet!J94 -> LESS
B50: =Worksheet!J95 -> Depreciation Allowance | C50: =Worksheet!K95 -> 12500 | D50: =Worksheet!L95 -> 12998.04688 | E50: =Worksheet!M95 -> 13215.42969 | F50: =Worksheet!N95 -> 13502.26676 | G50: =Worksheet!O95 -> 13238.58111
B51: =Worksheet!J96 -> Owners External Earning Power | C51: =Worksheet!K96 -> 60000 | D51: =Worksheet!L96 -> 60000 | E51: =Worksheet!M96 -> 61440 | F51: =Worksheet!N96 -> 63897.6 | G51: =Worksheet!O96 -> 61779.2
B52: =Worksheet!J97 -> Business Return | C52: =Worksheet!K97 -> 47500 | D52: =Worksheet!L97 -> 84032.99198 | E52: =Worksheet!M97 -> 109765.7137 | F52: =Worksheet!N97 -> 117238.1054 | G52: =Worksheet!O97 -> 103678.937
B53: =Worksheet!J98 -> Return on Sales | C53: =Worksheet!K98 -> 0.095 | D53: =Worksheet!L98 -> 0.1449625738 | E53: =Worksheet!M98 -> 0.1786351442 | F53: =Worksheet!N98 -> 0.1775359339 | G53: =Worksheet!O98 -> 0.1677183262
B54: =Worksheet!$J$80 -> Total Investment | C54: =+Worksheet!L80 -> 290022.5831
B55: =Worksheet!J99 -> Return on Total Investment | C55: =Worksheet!K99 -> 0.1637803494 | D55: =Worksheet!L99 -> 0.2897463745 | E55: =Worksheet!M99 -> 0.3784729884 | F55: =Worksheet!N99 -> 0.4042378497 | G55: =Worksheet!O99 -> 0.3574857376
B56: =+Welcome!$B$31 -> Copyright © Bizpep 2010 - www.bizpeponline.com. | C56: =+Welcome!$B$31 -> Copyright © Bizpep 2010 - www.bizpeponline.com. | D56: =+Welcome!$B$31 -> Copyright © Bizpep 2010 - www.bizpeponline.com. | E56: =+Welcome!$B$31 -> Copyright © Bizpep 2010 - www.bizpeponline.com. | F56: =+Welcome!$B$31 -> Copyright © Bizpep 2010 - www.bizpeponline.com. | G56: =+Welcome!$B$31 -> Copyright © Bizpep 2010 - www.bizpeponline.com.

Sheet Pessimistic Results
B2: ="Pessimistic Results - " & 'Terms and Conditions'!B3 -> Pessimistic Results - Business Valuation Model Excel 50
B3: =Worksheet!Q2 -> Pessimistic Forecast degraded by | C3: =Worksheet!R2 -> 0.2
B4: =Worksheet!Q3 -> Example Business
C5: =Worksheet!R4 -> Current Year | D5: =Worksheet!S4 -> Year 1 | E5: =Worksheet!T4 -> Year 2 | F5: =Worksheet!U4 -> Year 3 | G5: =Worksheet!V4 -> 3 Year Average
B6: =Worksheet!Q5 -> Business Revenue | C6: =Worksheet!R5 -> 500000 | D6: =Worksheet!S5 -> 542084.9421 | E6: =Worksheet!T5 -> 563768.3398 | F6: =Worksheet!U5 -> 591494.6516 | G6: =Worksheet!V5 -> 565782.6445
B7: =Worksheet!Q6 -> Expenses
B8: =Worksheet!Q7 -> Variable Costs
B9: =Worksheet!Q8 -> Materials & Supplies | C9: =Worksheet!R8 -> 10000 | D9: =Worksheet!S8 -> 11116.97635 | E9: =Worksheet!T8 -> 11672.82517 | F9: =Worksheet!U8 -> 12246.89854 | G9: =Worksheet!V8 -> 11678.90002
B10: =Worksheet!Q9 -> % Revenue | C10: =Worksheet!R9 -> 0.02 | D10: =Worksheet!S9 -> 0.0205078125 | E10: =Worksheet!T9 -> 0.020705003 | F10: =Worksheet!U9 -> 0.020705003 | G10: =Worksheet!V9 -> 0.02064202593
B11: =Worksheet!Q10 -> Labor excluding Owner | C11: =Worksheet!R10 -> 200000 | D11: =Worksheet!S10 -> 214900.3378 | E11: =Worksheet!T10 -> 222879.7805 | F11: =Worksheet!U10 -> 250882.6618 | G11: =Worksheet!V10 -> 229554.26
B12: =Worksheet!Q11 -> % Revenue | C12: =Worksheet!R11 -> 0.4 | D12: =Worksheet!S11 -> 0.3964329594 | E12: =Worksheet!T11 -> 0.3953392994 | F12: =Worksheet!U11 -> 0.4241503472 | G12: =Worksheet!V11 -> 0.4057287057
B13: =Worksheet!Q12 -> Labor Owner | C13: =Worksheet!R12 -> 50000 | D13: =Worksheet!S12 -> 49789.57529 | E13: =Worksheet!T12 -> 51338.96954 | F13: =Worksheet!U12 -> 54084.55131 | G13: =Worksheet!V12 -> 51737.69871
B14: =Worksheet!Q13 -> % Revenue | C14: =Worksheet!R13 -> 0.1 | D14: =Worksheet!S13 -> 0.0918482906 | E14: =Worksheet!T13 -> 0.0910639458 | F14: =Worksheet!U13 -> 0.09143709274 | G14: =Worksheet!V13 -> 0.09144447823
B15: =Worksheet!Q14 -> Distribution | C15: =Worksheet!R14 -> 20000 | D15: =Worksheet!S14 -> 21175.19305 | E15: =Worksheet!T14 -> 21175.19305 | F15: =Worksheet!U14 -> 22216.59599 | G15: =Worksheet!V14 -> 21522.32736
B16: =Worksheet!Q15 -> % Revenue | C16: =Worksheet!R15 -> 0.04 | D16: =Worksheet!S15 -> 0.0390625 | E16: =Worksheet!T15 -> 0.03756009615 | F16: =Worksheet!U15 -> 0.03756009615 | G16: =Worksheet!V15 -> 0.03803992147
B17: =Worksheet!Q16 -> Marketing | C17: =Worksheet!R16 -> 10000 | D17: =Worksheet!S16 -> 10587.59653 | E17: =Worksheet!T16 -> 10587.59653 | F17: =Worksheet!U16 -> 11108.29799 | G17: =Worksheet!V16 -> 10761.16368
B18: =Worksheet!Q17 -> % Revenue | C18: =Worksheet!R17 -> 0.02 | D18: =Worksheet!S17 -> 0.01953125 | E18: =Worksheet!T17 -> 0.01878004808 | F18: =Worksheet!U17 -> 0.01878004808 | G18: =Worksheet!V17 -> 0.01901996073
B19: =Worksheet!Q18 -> Other | C19: =Worksheet!R18 -> 20000 | D19: =Worksheet!S18 -> 21175.19305 | E19: =Worksheet!T18 -> 21175.19305 | F19: =Worksheet!U18 -> 22216.59599 | G19: =Worksheet!V18 -> 21522.32736
B20: =Worksheet!Q19 -> % Revenue | C20: =Worksheet!R19 -> 0.04 | D20: =Worksheet!S19 -> 0.0390625 | E20: =Worksheet!T19 -> 0.03756009615 | F20: =Worksheet!U19 -> 0.03756009615 | G20: =Worksheet!V19 -> 0.03803992147
B21: =Worksheet!Q20 -> Total Variable Costs | C21: =Worksheet!R20 -> 310000 | D21: =Worksheet!S20 -> 328744.8721 | E21: =Worksheet!T20 -> 338829.5578 | F21: =Worksheet!U20 -> 372755.6016 | G21: =Worksheet!V20 -> 346776.6772
B22: =Worksheet!Q21 -> Total Variable Costs % | C22: =Worksheet!R21 -> 0.62 | D22: =Worksheet!S21 -> 0.6064453125 | E22: =Worksheet!T21 -> 0.6010084886 | F22: =Worksheet!U21 -> 0.6301926833 | G22: =Worksheet!V21 -> 0.6129150135
B23: =Worksheet!Q22 -> Gross Profit | C23: =Worksheet!R22 -> 190000 | D23: =Worksheet!S22 -> 213340.07 | E23: =Worksheet!T22 -> 224938.782 | F23: =Worksheet!U22 -> 218739.0499 | G23: =Worksheet!V22 -> 219005.9673
B24: =Worksheet!Q23 -> Gross Profit % | C24: =Worksheet!R23 -> 0.38 | D24: =Worksheet!S23 -> 0.3935546875 | E24: =Worksheet!T23 -> 0.3989915114 | F24: =Worksheet!U23 -> 0.3698073167 | G24: =Worksheet!V23 -> 0.3870849865
B25: =Worksheet!Q24 -> Mark-up Equivalent | C25: =Worksheet!R24 -> 0.6129032258 | D25: =Worksheet!S24 -> 0.6489533011 | E25: =Worksheet!T24 -> 0.6638700102 | F25: =Worksheet!U24 -> 0.5868162651 | G25: =Worksheet!V24 -> 0.6315475685
B26: =Worksheet!Q25 -> Fixed Costs
B27: =Worksheet!Q26 -> Location | C27: =Worksheet!R26 -> 40000 | D27: =Worksheet!S26 -> 40841.69884 | E27: =Worksheet!T26 -> 41275.3668 | F27: =Worksheet!U26 -> 41829.89303 | G27: =Worksheet!V26 -> 41315.65289
B28: =Worksheet!Q27 -> % Revenue | C28: =Worksheet!R27 -> 0.08 | D28: =Worksheet!S27 -> 0.07534188034 | E28: =Worksheet!T27 -> 0.07321334648 | F28: =Worksheet!U27 -> 0.07071897087 | G28: =Worksheet!V27 -> 0.07302389582
B29: =Worksheet!Q28 -> Administration | C29: =Worksheet!R28 -> 30000 | D29: =Worksheet!S28 -> 30631.27413 | E29: =Worksheet!T28 -> 30469.02076 | F29: =Worksheet!U28 -> 29690.73646 | G29: =Worksheet!V28 -> 30263.67712
B30: =Worksheet!Q29 -> % Revenue | C30: =Worksheet!R29 -> 0.06 | D30: =Worksheet!S29 -> 0.05650641026 | E30: =Worksheet!T29 -> 0.0540452853 | F30: =Worksheet!U29 -> 0.05019611992 | G30: =Worksheet!V29 -> 0.05348993543
B31: =Worksheet!Q30 -> Labor excluding Owner | C31: =Worksheet!R30 -> 50000 | D31: =Worksheet!S30 -> 51052.12355 | E31: =Worksheet!T30 -> 52305.15231 | F31: =Worksheet!U30 -> 54027.24345 | G31: =Worksheet!V30 -> 52461.50644
B32: =Worksheet!Q31 -> % Revenue | C32: =Worksheet!R31 -> 0.1 | D32: =Worksheet!S31 -> 0.09417735043 | E32: =Worksheet!T31 -> 0.09277773976 | F32: =Worksheet!U31 -> 0.09134020621 | G32: =Worksheet!V31 -> 0.09272378174
B33: =Worksheet!Q32 -> Labor Owner | C33: =Worksheet!R32 -> 10000 | D33: =Worksheet!S32 -> 10210.42471 | E33: =Worksheet!T32 -> 10461.03046 | F33: =Worksheet!U32 -> 10805.44869 | G33: =Worksheet!V32 -> 10492.30129
B34: =Worksheet!Q33 -> % Revenue | C34: =Worksheet!R33 -> 0.02 | D34: =Worksheet!S33 -> 0.01883547009 | E34: =Worksheet!T33 -> 0.01855554795 | F34: =Worksheet!U33 -> 0.01826804124 | G34: =Worksheet!V33 -> 0.01854475635
B35: =Worksheet!Q34 -> Interest Costs | C35: =Worksheet!R34 -> 0 | D35: =Worksheet!S34 -> 0 | E35: =Worksheet!T34 -> 0 | F35: =Worksheet!U34 -> 0 | G35: =Worksheet!V34 -> 0
B36: =Worksheet!Q35 -> % Revenue | C36: =Worksheet!R35 -> 0 | D36: =Worksheet!S35 -> 0 | E36: =Worksheet!T35 -> 0 | F36: =Worksheet!U35 -> 0 | G36: =Worksheet!V35 -> 0
B37: =Worksheet!Q36 -> Other | C37: =Worksheet!R36 -> 0 | D37: =Worksheet!S36 -> 0 | E37: =Worksheet!T36 -> 0 | F37: =Worksheet!U36 -> 0 | G37: =Worksheet!V36 -> 0
B38: =Worksheet!Q37 -> % Revenue | C38: =Worksheet!R37 -> 0 | D38: =Worksheet!S37 -> 0 | E38: =Worksheet!T37 -> 0 | F38: =Worksheet!U37 -> 0 | G38: =Worksheet!V37 -> 0
B39: =Worksheet!Q38 -> Total Fixed Costs | C39: =Worksheet!R38 -> 130000 | D39: =Worksheet!S38 -> 132735.5212 | E39: =Worksheet!T38 -> 134510.5703 | F39: =Worksheet!U38 -> 136353.3216 | G39: =Worksheet!V38 -> 134533.1377
B40: =Worksheet!Q39 -> Total Fixed Costs % | C40: =Worksheet!R39 -> 0.26 | D40: =Worksheet!S39 -> 0.2448611111 | E40: =Worksheet!T39 -> 0.2385919195 | F40: =Worksheet!U39 -> 0.2305233382 | G40: =Worksheet!V39 -> 0.2377823693
B42: =Worksheet!Q41 -> Total Expenses | C42: =Worksheet!R41 -> 440000 | D42: =Worksheet!S41 -> 461480.3933 | E42: =Worksheet!T41 -> 473340.1281 | F42: =Worksheet!U41 -> 509108.9232 | G42: =Worksheet!V41 -> 481309.8149
B44: =Worksheet!Q43 -> Operating Surplus | C44: =Worksheet!R43 -> 60000 | D44: =Worksheet!S43 -> 80604.54875 | E44: =Worksheet!T43 -> 90428.21164 | F44: =Worksheet!U43 -> 82385.72831 | G44: =Worksheet!V43 -> 84472.82957
B45: =Worksheet!Q44 -> Operating Surplus % | C45: =Worksheet!R44 -> 0.12 | D45: =Worksheet!S44 -> 0.1486935764 | E45: =Worksheet!T44 -> 0.1603995919 | F45: =Worksheet!U44 -> 0.1392839785 | G45: =Worksheet!V44 -> 0.1493026172
B47: =Worksheet!Q46 -> Owner Cash Flow | C47: =Worksheet!R46 -> 120000 | D47: =Worksheet!S46 -> 140604.5487 | E47: =Worksheet!T46 -> 152228.2116 | F47: =Worksheet!U46 -> 147275.7283 | G47: =Worksheet!V46 -> 146702.8296
B48: =Worksheet!Q47 -> Owner Cash Flow % | C48: =Worksheet!R47 -> 0.24 | D48: =Worksheet!S47 -> 0.2593773371 | E48: =Worksheet!T47 -> 0.2700190857 | F48: =Worksheet!U47 -> 0.2489891125 | G48: =Worksheet!V47 -> 0.2592918517
B49: =Worksheet!Q94 -> LESS
B50: =Worksheet!Q95 -> Depreciation Allowance | C50: =Worksheet!R95 -> 12500 | D50: =Worksheet!S95 -> 12763.03089 | E50: =Worksheet!T95 -> 12898.55212 | F50: =Worksheet!U95 -> 13071.84157 | G50: =Worksheet!V95 -> 12911.14153
B51: =Worksheet!Q96 -> Owners External Earning Power | C51: =Worksheet!R96 -> 60000 | D51: =Worksheet!S96 -> 60000 | E51: =Worksheet!T96 -> 62160 | F51: =Worksheet!U96 -> 65889.6 | G51: =Worksheet!V96 -> 62683.2
B52: =Worksheet!Q97 -> Business Return | C52: =Worksheet!R97 -> 47500 | D52: =Worksheet!S97 -> 67841.51786 | E52: =Worksheet!T97 -> 77169.65952 | F52: =Worksheet!U97 -> 68314.28674 | G52: =Worksheet!V97 -> 71108.48804
B53: =Worksheet!Q98 -> Return on Sales | C53: =Worksheet!R98 -> 0.095 | D53: =Worksheet!S98 -> 0.1251492388 | E53: =Worksheet!T98 -> 0.136881861 | F53: =Worksheet!U98 -> 0.115494344 | G53: =Worksheet!V98 -> 0.1256816354
B54: =+Worksheet!B80 -> Total Investment | C54: =+Worksheet!S80 -> 290022.5831
B55: =Worksheet!Q99 -> Return on Total Investment | C55: =Worksheet!R99 -> 0.1637803494 | D55: =Worksheet!S99 -> 0.2339180526 | E55: =Worksheet!T99 -> 0.2660815537 | F55: =Worksheet!U99 -> 0.2355481632 | G55: =Worksheet!V99 -> 0.2451825899
B56: =+Welcome!$B$31 -> Copyright © Bizpep 2010 - www.bizpeponline.com. | C56: =+Welcome!$B$31 -> Copyright © Bizpep 2010 - www.bizpeponline.com. | D56: =+Welcome!$B$31 -> Copyright © Bizpep 2010 - www.bizpeponline.com. | E56: =+Welcome!$B$31 -> Copyright © Bizpep 2010 - www.bizpeponline.com. | F56: =+Welcome!$B$31 -> Copyright © Bizpep 2010 - www.bizpeponline.com. | G56: =+Welcome!$B$31 -> Copyright © Bizpep 2010 - www.bizpeponline.com.

Sheet Instructions
B2: ="Instructions - " & 'Terms and Conditions'!B3 -> Instructions - Business Valuation Model Excel 50
B3: Overview
B4: Outline | D4: The Business Valuation Model is designed to provide an economical, efficient and effective means to assess the value of a business. The forecast input should be based on your subjective views. These are translated into quantifiable values for model operation. There is no need to provide "perfect" answers. Use your industry knowledge to make informed estimates. The goal is to provide a streamline tool to indicate possible outcomes. A recent business taxation return will assist in determining values for the Performance section. The Business Valuation Model combines Relative Indicators for future performance with basic financial data (Revenue, Variable Costs, and Fixed Costs) to value the business. This valuation method can be used for business purchase, sale, or establishment. It is compact, easy to use, and requires minimal inputs. Outputs include a 3 Year Forecast, Sensitivity Analysis, Investment Return, and calculated Business Valuation in tabular and graphical form.
B6: Contact Details | D6: For questions, suggestions, support or additional business software please visit:
D7: http://www.bizpeponline.com/
B8: Input
B9: All input is on the Input & Analysis Sheets. Click the tab or hyperlinks to access. Blue cells allow input.
B10: =+Input!B9 -> Current Operating Performance Data | D10: This section reviews the current performance of your business for a full year period. It is designed to assess the level of expenses that vary with your sales (Variable Costs) and those that don't (Fixed Costs). It also allocates a realistic labor cost for the owners effort. The focus is on cash flow excluding assets and taxation. Broad expense categories are provided. Labels in blue cells can be adjusted however they should reflect the original label type to ensure formula are applied correctly. Values can be based on the previous years tax return adjusted for current trading. Inputs do not have to be perfect but should reasonably reflect business operation.
B11: =+Input!B11 -> Business Name or Identifier | D11: Input a name for the business. This appears as an identifier on the Output Sheets.
B12: =+Input!B13 -> Business Revenue | D12: Input the Revenue generated by the business for the current year.
B13: Expenses | D13: Select your Expense input as Monetary or Percent. This allows you to input your Expenses directly in Monetary (Dollars, Pounds etc) or Percentage terms.
B14: =+Input!B16 -> Variable Costs | D14: Variable Costs vary with the volume of product or service you provide. Only include these costs in this section and allocate them into one of the six categories.
B15: =+Input!B17 -> Materials & Supplies | D15: Input the annual variable expense for materials and supplies directly related to producing your product or providing your service.
B16: =+Input!B18 -> Labor excluding Owner | D16: Input the annual variable expense for labor (excluding the owner) directly related to producing your product or providing your service. Labor expenses should include all associated on-costs and benefits.
B17: =+Input!B19 -> Labor Owner | D17: Input the annual value of labor provided by the owner that is directly related to producing your product or providing your service. This variable expense should reflect the effective labor effort and can be estimated as the cost of an employee who could replace the owner. Labor expenses should include all associated on-costs and benefits.
B18: =+Input!B20 -> Distribution | D18: Input the annual variable expense for distribution of your product or service. This may include freight costs, packaging, and vehicle running costs.
B19: =+Input!B21 -> Marketing | D19: Input the annual variable expense for marketing. Include advertising, promotional publications, sponsorships, client functions, and any marketing or sales expense. Marketing is not essentially a variable expense, however it is assumed that marketing does influence the level of sales and a relationship exists between the level of marketing and the level of sales. It is on this basis that it forms a component of Variable Costs.
B20: =+Input!B22 -> Other | D20: Input any annual variable expenses not already accounted for.
B21: =+Input!B23 -> Total Variable Costs | D21: This is the sum of the variable expenses. It is expressed as a monetary value and as a percentage of revenue.
B22: =+Input!B24 -> Fixed Costs | D22: Fixed Costs are expenses which remain constant (up to a point) while the volume of sales vary. Only include these costs in this section and allocate them into one of the six categories.
B23: =+Input!B25 -> Location | D23: Input the annual fixed location expense. Include rent, power and light, maintenance, building insurance, security, and cleaning. If you own the property do not include purchase or finance costs.
B24: =+Input!B26 -> Administration | D24: Input the annual fixed administration expense. Include office phone, equipment costs, and stationary.
B25: =+Input!B27 -> Labor excluding Owner | D25: Input the annual fixed labor expense (excluding owner). This should include any labor expense not already accounted for in variable costs. Labor expenses should include all associated on-costs and benefits.
B26: =+Input!B28 -> Labor Owner | D26: Input the annual value of fixed cost labor provided by the owner. This should include the value of any labor which has not already been accounted for in variable costs. This fixed expense should reflect the effective labor effort and can be estimated as the cost of an employee who could replace the owner. Labor expenses should include all associated on-costs and benefits.
B27: =+Input!B29 -> Interest Costs | D27: Input the annual fixed Interest Cost. Include only the interest component of loan repayments. Principle components reflect assets. It is recommended that the business initially be valued with no Finance or Interest component i.e. 100% equity. This ensures the valuation provides the required return on the Total Investment. Once you have established valuation details you can then insert Finance details to determine the impact on the business.
B28: =+Input!B30 -> Other | D28: Input any annual fixed expenses not already accounted for.
B29: =+Input!B31 -> Total Fixed Costs | D29: This is the sum of the fixed expenses. It is expressed as a monetary value and as a percentage of revenue.
B30: =+Input!B32 -> Operating Surplus | D30: Operating Surplus reflects the before tax operating profit/loss of the business for the full years trading. It is calculated as the Revenue less Total Variable Costs less Total Fixed Costs. It excludes asset investment. Assets include property, equipment, and capital reinvestment in the business. These investment components are considered in the Investment section. The Operating Surplus represents the day to day (short term) business performance.
B31: =+Input!B33 -> Owner Cash Flow | D31: Owner Cash Flow is the Operating Surplus plus the value of any Labor provided by the Owner. If the owner provides no labor for the business Owner Cash flow and Operating Surplus will be equal.
B32: =+Input!B36 -> Forecast Data | D32: This section considers factors that influence future business performance. A relative indicator is used to reflect unit changes in these factors. The base year relative indicator for each factor is defined as 100%. Relative indicators for each of the next three years are applied to reflect likely changes in the unit cost or strength of the factor. Each indicator is relative to the prior year. A 10% increase from the previous year is reflected by a relative indicator of 110%. A 10% decrease from the previous year is reflected by a relative indicator of 90%. Relative indicators for costs reflect changes in the base unit of the expense such as labor costs per hour or material costs per unit.
B33: =+Input!B38 -> Relative Indicator | D33: Relative Indicators are required for each factor for Years 1 to 3. If there is no change from the previous year the Relative Indicator is 100%. You have provided Revenue and Costs details for the current Year. Year 1 is the year following the Current Year, Year 2 follows Year 1, and Year 3 follows Year 2.
B34: =+Input!B39 -> Level of Competition | D34: Input the percentage relative indicator to reflect the level of change from the previous year. Consider the number of competitors, competitor strategies, potential new entrants. This indicator has an inverse relationship to forecast Business Revenue. All things being equal as the level of competition increases Business Revenue decreases.
B35: =+Input!B40 -> Market Strength | D35: Input the percentage relative indicator to reflect the level of change from the previous year. Consider market growth, technology & regulatory impacts and customer needs. Market strength is an indicator of the demand for the type of product or service you provide. This indicator has a direct relationship to forecast Business Revenue. All things being equal as market strength increases Business Revenue increases.
B36: =+Input!B41 -> Materials & Supplies Costs | D36: Input the percentage relative indicator to reflect the level of change from the previous year. Consider the potential changes in supplier pricing, sources of supply, your bargaining power, demand for materials, and possible alternative materials. This indicator has a direct relationship to forecast Materials & Supplies expenses. All things being equal as the unit cost of materials and supplies increases this Variable Cost expense increases.
B37: =+Input!B42 -> Labor Costs | D37: Input the percentage relative indicator to reflect the level of change from the previous year. Consider market forces and availability of skilled staff. This indicator has a direct relationship to forecast Variable and Fixed Cost Labor excluding Owner, and Labor Owner expenses. All things being equal as the unit labor costs increase these labor expenses increase. It is also used to determine future Owners External Earning Power.
B38: =+Input!B43 -> Interest Rates | D38: Input the percentage relative indicator to reflect the level of change from the previous year. This is percentage change not actual values. For a current interest rate of 6% a relative indicator of 110% in Year 1 equates to 6.6%, a relative indicator of 110% in Year 2 takes this to 7.26%. This indicator has a direct relationship to forecast Interest expenses. All things being equal as interest rates increase this Variable Cost expense increases.
B39: =+Input!B44 -> Business Market Position | D39: Input the percentage relative indicator to reflect the level of change from the previous year. Consider your position in the market, and the impact of your current actions. This is a measure of your standing relative to the competition as perceived by potential consumers. If things will remain much the same input 100%, indicating no change over the previous year. If you have actions to improve the position of your business by 10% then the input would be 110%. This indicator has a direct relationship to forecast Business Revenue. All thing being equal as market position increases Business Revenue increases. Actions contributing to the business position must be substantiated and implemented to have an impact.
B40: =+Input!B45 -> Variable Costs Efficiency | D40: Input the percentage relative indicator to reflect the level of change from the previous year. This should reflect changes in the relationship between your Variable Costs and revenue. If you have actions to improve your Variable Costs efficiency (decrease variable costs) by 10% over the previous year input 110%. Consider changes in processes, distribution or the materials used. This indicator has an inverse relationship to forecast Variable Costs Materials & Supplies, Labor excluding Owner, Labor Owner, Distribution, Marketing and Other expenses. All things being equal as Variable Costs Efficiency increases less materials, labor, distribution and marketing resources are required resulting in a decrease in these expenses. Actions must be substantiated and implemented to have an impact.
B41: =+Input!B46 -> Fixed Costs Efficiency | D41: Input the percentage relative indicator to reflect the level of change from the previous year. Consider changes in administration processes and Fixed Cost labor requirements. This indicator has an inverse relationship to forecast Fixed Costs Administration, Labor excluding Owner, Labor Owner, and Other expenses. All things being equal as Fixed Costs efficiency increases less administration and labor resources are required resulting in a decrease in these expenses. It does not apply to Location and Finance expenses. Actions contributing to the business position must be substantiated and implemented to have an impact. You can use the Decision Assistant Model to value your actions and determine their business impact, this is available from the bizpeponline.com web site.
B42: =+Input!B48 -> Fixed Costs Flow-on | D42: Input the percentage Fixed Costs Flow-on. This indicates the estimated level of fixed costs adjustment to support revenue variations. Fixed Costs are generally considered a constant expense, however large sustained revenue variations place pressure on fixed costs and usually result in an increased fixed cost expense. This may include larger floor area, more administration costs, or higher financing. The Fixed Costs Flow-on percentage is the amount of increase in Fixed Costs expense for a 100% increase in revenue. An fixed costs flow-on of 20% reflects a 20% increase in Fixed Costs expense for every 100% increase in revenue. This indicator has a direct relationship to all forecast Fixed Cost expenses.
B43: =+Input!B51 -> Valuation Data | D43: This section provides data to value the business. Consideration is given to the owners earning power outside the business, the replacement value of business assets and their useful life. Property (Real Estate) valuations are considered constant throughout the period. Annual replacement costs for other business assets are calculated as the Replacement Value divided by the Asset Life. This provides for constant reinvestment to maintain the business. This data is combined with the business forecast to determine a business valuation.
B44: =+Input!B53 -> Owners Time Commitment to Business | D44: Input the percentage of work time the owner commits to the business. This is used to determine the owners return for effort and indicates the available amount of owner resource. Available resource will be applied to any forecast labor increase in Fixed, then Variable Costs where the owner currently contributes.
B45: =+Input!B54 -> Owners External Earning Power | D45: Input the annual income the owner could earn if employed outside the business. Include any benefits. The actual return from the business must compensate the owner for giving up External Earnings and provide the required return on Investment. A return on Investment only occurs after the owner has been compensated for External Earnings given up.
B46: =+Input!B55 -> Replacement Value of Business Assets | D46: Input the replacement value of physical business assets. Exclude property. Consider vehicles, plant and equipment. This forms a component of the total business investment.
B47: =+Input!B56 -> Life of Assets (years) | D47: Input the average life of the assets. The Replacement Value of Business Assets will be divided by the Life of Assets to provide an indication of annual asset depreciation expense. This will be used in determining the owners return from the business.
B48: =+Input!B57 -> Market Value of Property | D48: Input the estimated market value of property owned by the business. Property values are considered stable over the forecast period and no depreciation is allowed for. This forms a component of the total business investment.
B49: =+Input!B58 -> Other Investment in Business | D49: Input the value of any other investment made in the business. Consider operating capital and goodwill paid. This forms a component of the total business investment. This amount will be adjusted in-line with your Valuation Analysis.
B50: =+Input!B59 -> Total Investment | D50: This indicates the Total Investment in the business. It is the sum of Replacement Value of Business Assets, Market Value of Property, and Other Investment in Business.
B51: =+Input!B60 -> Financed Amount | D51: This is the amount of finance carried by the business. It is recommended that the business initially be valued with no Finance or Interest component i.e. 100% equity. This ensures the valuation provides the required return on the Total Investment. Once you have established a valuation you can then insert Finance details to determine the impact on the business. The calculated Interest Rate is based on the Financed Amount and the annual Interest Cost from the Performance Data. No principle reduction is considered during the forecast period, only interest expense, principle components reflect assets.
B52: =+Input!B61 -> Equity Investment | D52: This is the average annual Return on Total Investment over a three year period.
B53: =+Input!B67 -> Sensitivity Analysis | D53: Sensitivity Analysis allows you to adjust your Relative Indicators by a set percentage to generate Optimistic and Pessimistic Forecasts.
B54: Optimistic Input | D54: Input the percentage improvement in Relative Indicators to generate an Optimistic Forecast. If you feel it is "reasonably likely" your Relative Indicators are 20% too low, input 20%.
B55: Pessimistic Input | D55: Input the percentage degrade in Relative Indicators to generate a Pessimistic Forecast. If you feel it is "reasonably likely" your Relative Indicators are 20% too high, input 20%.
B56: =+'Sensitivity Analysis'!B10 -> Business Revenue | D56: This is the forecast revenue generated by the business.
B57: =+'Sensitivity Analysis'!B11 -> Optimistic | D57: This is the forecast based on your Optimistic improvement to Relative Indicators.
B58: =+'Sensitivity Analysis'!B12 -> Expected | D58: This is the forecast based on the Relative Indicators you provided as input.
B59: =+'Sensitivity Analysis'!B13 -> Pessimistic | D59: This is the forecast based on your Pessimistic degradation of Relative Indicators.
B60: =+'Sensitivity Analysis'!B14 -> Operating Surplus | D60: This is the Revenue less Variable and Fixed Costs including payment to the owner for labor provided.
B61: =+'Sensitivity Analysis'!B18 -> Owner Cash Flow | D61: This is the Operating Surplus plus any labor Earnings of the Owner.
B62: =+'Sensitivity Analysis'!B22 -> Business Return | D62: Business Return is the Owners Cash Flow less a Depreciation Allowance and Owners External Earning Power. A Depreciation Allowance is required for the long term maintenance of the business. It is calculated as the Replacement Value of Business Assets divided by the Asset Lifetime. If the Depreciation Allowance is not reinvested business performance and value will decrease. The Owners External Earning Power reflects the income given up by the owner to work in the business. This must be recouped through the business before there is any return on investment generated.
B63: =+Input!B68 -> Valuation Analysis | D63: Simply input your desired Return on Investment to calculate your Business Valuation. If you have applied Sensitivity Analysis 3 valuations will be calculated; Optimistic, Expected, and Pessimistic.
B64: =+'Valuation Analysis'!B18 -> % Return on Total Investment | D64: This is the Business Return as a percentage of the Total Investment. It is an indicator of the quality of the business investment. The higher the Return on Investment the better the investment. However as the level of risk increases a higher Return on Investment is required to compensate for the risk taken. Business Return is the Owners Cash Flow less a Depreciation Allowance and Owners External Earning Power.
B65: Required Return on Investment | D65: This is the Business Return as a percentage of the Total Investment. It is an indicator of the quality of the business investment. The higher the Return on Investment the better the investment. However as the level of risk increases a higher Return on Investment is required to compensate for the risk taken. Business Return is the Owners Cash Flow less a Depreciation Allowance and Owners External Earning Power.
B66: Expected Valuation | D66: This Valuation is based on the Expected Forecast and the required average 3 Year Return on Investment. It represents the Total Investment in the business and is an indication of Sale or Purchase price. Based on the Expected Forecast this is the maximum Investment that should be applied to this business to achieve the required Return on Investment.
B67: Optimistic Valuation | D67: This represents the Optimistic Valuation (high). It provides the required average 3 Year Return based on the Optimistic Forecast. However if the business does not provide a return inline with the Optimistic forecast the return on Investment will be less than required at this valuation.
B68: Pessimistic Valuation | D68: This represents the Pessimistic Valuation (low). It provides the required average 3 Year Return based on the Pessimistic Forecast. If the business provides a return greater than the Pessimistic forecast the return on Investment will exceed that required at this valuation.
B69: Update Valuation | D69: Input your Valuation and click the Update Button to generate new Return details. The Valuation will normally be the Expected Return Valuation.
B70: Output Sheets
B71: Summary outputs are included on the Sensitivity and Valuation Analysis Sheets. Details are in tabular form on the Results Sheets and graphical form on the Chart Sheets. To display Sheets click the associated button or tab.
B72: =+Input!B67 -> Sensitivity Analysis | D72: Sensitivity Analysis allows you to adjust your Relative Indicators by a set percentage to generate Optimistic and Pessimistic Forecasts.
B73: =+Input!B68 -> Valuation Analysis | D73: Simply input your desired Return on Investment to calculate your Business Valuation. If you have applied Sensitivity Analysis 3 valuations will be calculated; Optimistic, Expected, and Pessimistic.
B74: =+Input!B69 -> Expected Results | D74: Full tabular results for your Expected Forecast and Return on Investment.
B75: =+Input!B70 -> Optimistic Results | D75: Full tabular results for your Optimistic Forecast and Return on Investment.
B76: =+Input!B71 -> Pessimistic Results | D76: Full tabular results for your Pessimistic Forecast and Return on Investment.
B77: =+Input!B72 -> Forecast Revenue Chart | D77: 3 Year Forecast Revenue Chart; Optimistic, Expected and Pessimistic.
B78: =+Input!B73 -> Forecast Return Chart | D78: 3 Year Forecast Return Chart; Optimistic, Expected and Pessimistic. Return is the Owners Cash Flow less the Depreciation Allowance and Owners External Earning Power.
B79: =+Input!B74 -> Operating Surplus Chart | D79: 3 Year Expected Operating Surplus Chart including Variable and Fixed Costs.
B80: =+Input!B75 -> Surplus & Return Chart | D80: 3 Year Expected Operating Surplus on Sales, Return on Sales, and Return on Total Investment percentages.
B81: =+Welcome!B31 -> Copyright © Bizpep 2010 - www.bizpeponline.com.

Sheet Terms and Conditions
B2: Terms and Conditions
B3: Business Valuation Model Excel 50
B4: Software licensed to
B5: Not Licensed, Evaluation Mode.
B6: Inputs for Current Performance values (gray cells) are limited to Example Business data.
B7: Payment is required to Register this software and enable all inputs.
B8: by
B9: Bizpep
B10: Copyright © Bizpep 2010 - www.bizpeponline.com.
B11: Build 20100114
B12: For Software Support and additional Business Support Software visit:
B13: www.bizpeponline.com
B15: Order Now for immediate online delivery and receive a 30 day money back guarantee for just:
B16: US$69.00
B17: Single User Non-Commercial License - Multi-user licenses attract a 30% discount.
B18: Secure online payment is available at:
B19: http://www.bizpeponline.com/BusinessValuationReg.html
B20: As soon as your transaction is completed you will receive Registration Details by return email.
B22: This will register your software and enable all inputs.
B23: Software which is not correctly licensed exposes individuals and business to serious risk.
B26: You can also try our web based Business Valuation Analysis Module at:
B27: http://www.businessperformanceanalysis.com/
B28: It comes with a free trial period and runs in your browser with no download required.
B30: 1. Outline
B32: The Business Valuation Model is designed to provide an economical, efficient and effective means to assess the value of a business. The forecast input should be based on your subjective views. These are translated into quantifiable values for model operation. There is no need to provide "perfect" answers. Use your industry knowledge to make informed estimates. The goal is to provide a streamline tool to indicate possible outcomes.
B34: A recent business taxation return will assist in determining values for the Performance section. The Business Valuation Model combines Relative Indicators for future performance with basic financial data (Revenue, Variable Costs, and Fixed Costs) to value the business. This valuation method can be used for business purchase, sale, or establishment. It is compact, easy to use, and requires minimal inputs. Outputs include a 3 Year Forecast, Sensitivity Analysis, Investment Return, and calculated Business Valuation in tabular and graphical form.
B36: 2. Scope
B38: Conditions of use apply to all Bizpep services, software, and information presented. They cover all Bizpep principles, employees, distributors and other associated parties.
B39: Use acknowledges acceptance. Full copyright is maintained by Bizpep.
B41: 3. Evaluation
B43: Software is provide free for Evaluation. Example Business data is used for Current Performance input values (gray cells) in Evaluation Mode and cannot be changed in Evaluation Mode. Registering software removes restrictions on Current Performance input values (gray cells) allowing individual business data to be entered.
B44: For software registered with a Non-Commercial License all other features including cell and macro protection are the same as in evaluation software. All non-input cells and macros remain protected to ensure the integrity of the formula and programming. For software registered with a Commercial License an additional calculation sheet named Worksheet is displayed and all calculation sheets are protected without a password. This allows them to be unprotected to view the underlying formula and undertake minor refinements. All macros remain protected.
B45: 4. Install / Uninstall
B47: This software is in Microsoft Excel format. To run this software you must have Excel installed on your computer and macros must be enabled.
B48: If software is downloaded as a Self-Extracting SetUp file (with a .exe extension) when you run the downloaded file it will extract and install the Excel program.
B49: If software is downloaded as a standard Compressed Zip file (with a .zip extension) it requires unzipping for use. Trial Zip software is available free from www.winzip.com.
B50: Once you have extracted the Excel file you can run the software from the program icons or by simply opening the Excel file.
B52: No system files are changed when you use this software. To uninstall run the Uninstall program or simply delete all associated files.
B54: 5. Purchase
B56: To register software and enable all inputs requires payment:
B57: =B16 -> US$69.00
B58: =B17 -> Single User Non-Commercial License - Multi-user licenses attract a 30% discount.
B60: Payment is online at:
B61: http://www.bizpeponline.com/BusinessValuationReg.html
B63: Upon receipt of payment Bizpep will provide by return email registration details to maintain the software and enable all inputs.
B64: Registering software removes restrictions on Current Performance input values (gray cells).
B65: For software registered with a Non-Commercial License all other features including cell and macro protection are the same as in evaluation software. All non-input cells and macros remain protected to ensure the integrity of the formula and programming.
B66: For software registered with a Commercial License an additional calculation sheet named Worksheet is displayed and all calculation sheets are protected without a password. This allows them to be unprotected to view the underlying formula and undertake minor refinements. All macros remain protected.
B71: 6. License
B73: Number of Licenses
B74: The number of licenses you purchase is the maximum Number of Users and the maximum Number of Computer Systems the purchased software can be installed on or that can access the software if on a network.
B75: If you purchase a single user license (Quantity set to 1) the software must only be accessible from one computer and there must only be one user.
B76: To run the software on more than one computer, a network, or provide for additional users you must purchase a Multi-user license by setting the purchase quantity to the required number of user licenses.
B77: Multi-user licenses attract a 30% discount.
B79: Non-Commercial License
B80: This license is for non-commercial private and internal business use only. It does not cover the commercial use of software for inter-business support, advice, or consulting.
B81: Registering evaluation software with a Non-Commercial License removes restrictions on Current Performance input values (gray cells). All other features including cell and macro protection are the same in evaluation and registered Non-Commercial software.
B82: All non-input cells and macros remain protected to ensure the integrity of the formula and programming.
B84: Commercial License
B85: This license allows the commercial use of software for inter-business support, advice, or consulting.
B86: Registering evaluation software with a Commercial License removes restrictions on Current Performance input values (gray cells) and provides authorization for Commercial use.
B87: Once you have registered your software with your Commercial license calculation sheets are protected without a password. To unprotect a calculation sheet from the sheet go Review, Unprotect Sheet when using Excel 2007 or Tools, Protection, Unprotect Sheet when using Excel 97-2003. An additional calcualtion sheet named Worksheet is also displayed and includes underlying formula and calculations. Unprotecting the sheets allows you to view the underlying formula and undertake minor refinements. All non calculation sheets and macros remain password protected. Any changes to formula may impact on the validity of the software. It is recommended that you save a master copy to ensure you always have a valid version.
B89: Source License
B90: This license allows you to access and modify all software code including macros. For additional details please submit your request at:
B91: www.bizpeponline.com/ContactUs.html
B93: 7. Software Support
B95: Bizpep offer support for operation and application of registered software. Simply submit your support request at:
B96: www.bizpeponline.com/ContactUs.html
B98: 8. Intellectual Property
B100: Bizpep retain all intellectual property rights. It is prohibited to use the software, concepts, formats, and systems obtained from Bizpep in any manner outside their intended use as designed and defined by Bizpep.
B101: You may not modify, translate, reverse engineer, decompile, disassemble or create derivative works based on Bizpep software, services or concepts.
B103: 9. Hold Harmless
B105: Bizpep provide tools to support business. The specific suitability of these tools must be independently assessed.
B106: Services including software, concepts, formats, and systems are provided as is and with no warranties of any kind, whether expressed or implied.
B107: The user must assume the entire risk of using Bizpep software or services, and agrees to hold Bizpep harmless from any claims or losses relating to service or software use.
B108: In no event shall Bizpep, its principals, distributors, employees, or other associated parties, be liable for any incidental, consequential, or punitive damages whatsoever relating to software or service use.
B109: In addition use of software and services is entirely at the users risk, and use acknowledges that Bizpep is held harmless from any claims or losses relating to software or services provided.
B111: 10. Distribution
B113: You may freely distribute this software in Evaluation form without Registration Codes. Any software distributed must require the user to provide payment to Bizpep to maintain the software as originally designed.
B114: You may not sell or require payment in any form for Bizpep software. Evaluation software must be distributed without cost or penalty to the user.
B116: All rights of any kind which are not expressly granted are entirely and exclusively reserved to and by Bizpep.
B118: 11. Contact Details
B120: For software support and to contact us please submit your request at:
B121: www.bizpeponline.com/ContactUs.html
B122: Additional business support software and online help are available at:
B123: www.bizpeponline.com
B125: =B10 -> Copyright © Bizpep 2010 - www.bizpeponline.com.

Sheet Worksheet (hidden)
B2: Expected Forecast | J2: Optimistic Forecast improved by | K2: =+'Sensitivity Analysis'!E7 -> 0.2 | Q2: Pessimistic Forecast degraded by | R2: =+'Sensitivity Analysis'!E8 -> 0.2
B3: =+Input!C11 -> Example Business | J3: =+$B3 -> Example Business | Q3: =+$B3 -> Example Business
B4: Expected | C4: =+C50 -> Current Year | D4: =+D50 -> Year 1 | E4: =+E50 -> Year 2 | F4: =+F50 -> Year 3 | G4: =+G85 -> 3 Year Average | J4: Optimistic | K4: =+K50 -> Current Year | L4: =+L50 -> Year 1 | M4: =+M50 -> Year 2 | N4: =+N50 -> Year 3 | O4: =+O85 -> 3 Year Average | Q4: Pessimistic | R4: =+R50 -> Current Year | S4: =+S50 -> Year 1 | T4: =+T50 -> Year 2 | U4: =+U50 -> Year 3 | V4: =+V85 -> 3 Year Average
B5: =+Input!B13 -> Business Revenue | C5: =+Input!C13 -> 500000 | D5: =+C5*D52*D56/D51 -> 560679.6117 | E5: =+D5*E52*E56/E51 -> 588713.5922 | F5: =+E5*F52*F56/F51 -> 625128.866 | G5: =AVERAGE(D5:F5) -> 591507.3566 | J5: =+$B5 -> Business Revenue | K5: =+C5 -> 500000 | L5: =+K5*L52*L56/L51 -> 579687.5 | M5: =+L5*M52*M56/M51 -> 614468.75 | N5: =+M5*N52*N56/N51 -> 660362.6815 | O5: =AVERAGE(L5:N5) -> 618172.9772 | Q5: =+$B5 -> Business Revenue | R5: =+C5 -> 500000 | S5: =+R5*S52*S56/S51 -> 542084.9421 | T5: =+S5*T52*T56/T51 -> 563768.3398 | U5: =+T5*U52*U56/U51 -> 591494.6516 | V5: =AVERAGE(S5:U5) -> 565782.6445
B6: =+Input!B15 -> Expenses | J6: =+$B6 -> Expenses | Q6: =+$B6 -> Expenses
B7: =+Input!B16 -> Variable Costs | J7: Variable Costs | Q7: Variable Costs
B8: =+Input!B17 -> Materials & Supplies | C8: =IF(Input!C$15=Input!B$86,Input!C$17,Input!D$17) -> 10000 | D8: =+D5*$C9*$D53/D57 -> 11431.33189 | E8: =+E5*$C9*$D53*$E53/D57/E57 -> 12002.89848 | F8: =+F5*$C9*$D53*$E53*F53/D57/E57/F57 -> 12745.34581 | G8: =AVERAGE(D8:F8) -> 12059.85873 | J8: Materials & Supplies | K8: =+C8 -> 10000 | L8: =+L5*$C9*$D53/L57 -> 11750.4223 | M8: =+M5*$C9*$D53*$E53/L57/M57 -> 12337.94341 | N8: =+N5*$C9*$D53*$E53*N53/L57/M57/N57 -> 13259.44956 | O8: =AVERAGE(L8:N8) -> 12449.27176 | Q8: Materials & Supplies | R8: =+C8 -> 10000 | S8: =+S5*$C9*$D53/S57 -> 11116.97635 | T8: =+T5*$C9*$D53*$E53/S57/T57 -> 11672.82517 | U8: =+U5*$C9*$D53*$E53*U53/S57/T57/U57 -> 12246.89854 | V8: =AVERAGE(S8:U8) -> 11678.90002
B9: % Revenue | C9: =+C8/C$5 -> 0.02 | D9: =+D8/D5 -> 0.02038834951 | E9: =+E8/E5 -> 0.02038834951 | F9: =+F8/F5 -> 0.02038834951 | G9: =+G8/G5 -> 0.02038834951 | J9: % Revenue | K9: =+K8/K$5 -> 0.02 | L9: =+L8/L5 -> 0.02027027027 | M9: =+M8/M5 -> 0.02007904131 | N9: =+N8/N5 -> 0.02007904131 | O9: =+O8/O5 -> 0.02013881586 | Q9: % Revenue | R9: =+R8/R$5 -> 0.02 | S9: =+S8/S5 -> 0.0205078125 | T9: =+T8/T5 -> 0.020705003 | U9: =+U8/U5 -> 0.020705003 | V9: =+V8/V5 -> 0.02064202593
B10: =+Input!B18 -> Labor excluding Owner | C10: =IF(Input!C$15=Input!B$86,Input!C$18,Input!D$18) -> 200000 | D10: =+D$5*($C11+$C13)*D54/D57-D12 -> 222477.9668 | E10: =+E$5*($C11+$C13)*D54*E54/D57/E57-E12 -> 229085.7617 | F10: =+F$5*($C11+$C13)*D54*E54*F54/D57/E57/F57-F12 -> 258404.2503 | G10: =AVERAGE(D10:F10) -> 236655.9929 | J10: Labor excluding Owner | K10: =+C10 -> 200000 | L10: =+L$5*($C11+$C13)*L54/L57-L12 -> 230170.397 | M10: =+M$5*($C11+$C13)*L54*M54/L57/M57-M12 -> 235320.7776 | N10: =+N$5*($C11+$C13)*L54*M54*N54/L57/M57/N57-N12 -> 265969.2734 | O10: =AVERAGE(L10:N10) -> 243820.1493 | Q10: Labor excluding Owner | R10: =+C10 -> 200000 | S10: =+S$5*($C11+$C13)*S54/S57-S12 -> 214900.3378 | T10: =+T$5*($C11+$C13)*S54*T54/S57/T57-T12 -> 222879.7805 | U10: =+U$5*($C11+$C13)*S54*T54*U54/S57/T57/U57-U12 -> 250882.6618 | V10: =AVERAGE(S10:U10) -> 229554.26
B11: % Revenue | C11: =+C10/C$5 -> 0.4 | D11: =+D10/D$5 -> 0.3968005296 | E11: =+E10/E$5 -> 0.3891293912 | F11: =+F10/F$5 -> 0.4133615713 | G11: =+G10/G$5 -> 0.4000896866 | J11: % Revenue | K11: =+K10/K$5 -> 0.4 | L11: =+L10/L$5 -> 0.3970594449 | M11: =+M10/M$5 -> 0.382966225 | N11: =+N10/N$5 -> 0.4027624226 | O11: =+O10/O$5 -> 0.3944205883 | Q11: % Revenue | R11: =+R10/R$5 -> 0.4 | S11: =+S10/S$5 -> 0.3964329594 | T11: =+T10/T$5 -> 0.3953392994 | U11: =+U10/U$5 -> 0.4241503472 | V11: =+V10/V$5 -> 0.4057287057
B12: =+Input!B19 -> Labor Owner | C12: =IF(Input!C$15=Input!B$86,Input!C$19,Input!D$19) -> 50000 | D12: =IF((D$5*$C13*D54/D57+D32)<=D$60,D$5*$C13*$D54/D57,(D$60-D32)) -> 49696.60194 | E12: =IF((E$5*$C13*D54*E54/D57/E57+E32)<=E$60,E$5*$C13*$D54*$E54/D57/E57,(E$60-E32)) -> 51254.04412 | F12: =IF((F$5*$C13*D54*E54*F54/D57/E57/F57+F32)<=F$60,F$5*$C13*$D54*$E54*F54/D57/E57/F57,(F$60-F32)) -> 54160.18269 | G12: =AVERAGE(D12:F12) -> 51703.60958 | J12: Labor Owner | K12: =+C12 -> 50000 | L12: =IF((L$5*$C13*L54/L57+L32)<=L$60,L$5*$C13*$D54/L57,(L$60-L32)) -> 49601.5625 | M12: =IF((M$5*$C13*L54*M54/L57/M57+M32)<=M$60,M$5*$C13*$D54*$E54/L57/M57,(M$60-M32)) -> 51165.70892 | N12: =IF((N$5*$C13*L54*M54*N54/L57/M57/N57+N32)<=N$60,N$5*$C13*$D54*$E54*N54/L57/M57/N57,(N$60-N32)) -> 54229.8967 | O12: =AVERAGE(L12:N12) -> 51665.72271 | Q12: Labor Owner | R12: =+C12 -> 50000 | S12: =IF((S$5*$C13*S54/S57+S32)<=S$60,S$5*$C13*$D54/S57,(S$60-S32)) -> 49789.57529 | T12: =IF((T$5*$C13*S54*T54/S57/T57+T32)<=T$60,T$5*$C13*$D54*$E54/S57/T57,(T$60-T32)) -> 51338.96954 | U12: =IF((U$5*$C13*S54*T54*U54/S57/T57/U57+U32)<=U$60,U$5*$C13*$D54*$E54*U54/S57/T57/U57,(U$60-U32)) -> 54084.55131 | V12: =AVERAGE(S12:U12) -> 51737.69871
B13: % Revenue | C13: =+C12/C$5 -> 0.1 | D13: =+D12/D$5 -> 0.08863636364 | E13: =+E12/E$5 -> 0.08706108504 | F13: =+F12/F$5 -> 0.0866384287 | G13: =+G12/G$5 -> 0.08740991807 | J13: % Revenue | K13: =+K12/K$5 -> 0.1 | L13: =+L12/L$5 -> 0.08556603774 | M13: =+M12/M$5 -> 0.08326820351 | N13: =+N12/N$5 -> 0.08212138302 | O13: =+O12/O$5 -> 0.08357809968 | Q13: % Revenue | R13: =+R12/R$5 -> 0.1 | S13: =+S12/S$5 -> 0.0918482906 | T13: =+T12/T$5 -> 0.0910639458 | U13: =+U12/U$5 -> 0.09143709274 | V13: =+V12/V$5 -> 0.09144447823
B14: =+Input!B20 -> Distribution | C14: =IF(Input!C$15=Input!B$86,Input!C$20,Input!D$20) -> 20000 | D14: =+D$5*$C15/D57 -> 21773.9655 | E14: =+E$5*$C15/D57/E57 -> 21773.9655 | F14: =+F$5*$C15/D57/E57/F57 -> 23120.80873 | G14: =AVERAGE(D14:F14) -> 22222.91324 | J14: Distribution | K14: =+C14 -> 20000 | L14: =+L$5*$C15/L57 -> 22381.75676 | M14: =+M$5*$C15/L57/M57 -> 22381.75676 | N14: =+N$5*$C15/L57/M57/N57 -> 24053.42324 | O14: =AVERAGE(L14:N14) -> 22938.97892 | Q14: Distribution | R14: =+C14 -> 20000 | S14: =+S$5*$C15/S57 -> 21175.19305 | T14: =+T$5*$C15/S57/T57 -> 21175.19305 | U14: =+U$5*$C15/S57/T57/U57 -> 22216.59599 | V14: =AVERAGE(S14:U14) -> 21522.32736
B15: % Revenue | C15: =+C14/C$5 -> 0.04 | D15: =+D14/D$5 -> 0.03883495146 | E15: =+E14/E$5 -> 0.03698566805 | F15: =+F14/F$5 -> 0.03698566805 | G15: =+G14/G$5 -> 0.03756996932 | J15: % Revenue | K15: =+K14/K$5 -> 0.04 | L15: =+L14/L$5 -> 0.03861003861 | M15: =+M14/M$5 -> 0.03642456473 | N15: =+N14/N$5 -> 0.03642456473 | O15: =+O14/O$5 -> 0.03710770248 | Q15: % Revenue | R15: =+R14/R$5 -> 0.04 | S15: =+S14/S$5 -> 0.0390625 | T15: =+T14/T$5 -> 0.03756009615 | U15: =+U14/U$5 -> 0.03756009615 | V15: =+V14/V$5 -> 0.03803992147
B16: =+Input!B21 -> Marketing | C16: =IF(Input!C$15=Input!B$86,Input!C$21,Input!D$21) -> 10000 | D16: =+D$5*$C17/D57 -> 10886.98275 | E16: =+E$5*$C17/D57/E57 -> 10886.98275 | F16: =+F$5*$C17/D57/E57/F57 -> 11560.40436 | G16: =AVERAGE(D16:F16) -> 11111.45662 | J16: Marketing | K16: =+C16 -> 10000 | L16: =+L$5*$C17/L57 -> 11190.87838 | M16: =+M$5*$C17/L57/M57 -> 11190.87838 | N16: =+N$5*$C17/L57/M57/N57 -> 12026.71162 | O16: =AVERAGE(L16:N16) -> 11469.48946 | Q16: Marketing | R16: =+C16 -> 10000 | S16: =+S$5*$C17/S57 -> 10587.59653 | T16: =+T$5*$C17/S57/T57 -> 10587.59653 | U16: =+U$5*$C17/S57/T57/U57 -> 11108.29799 | V16: =AVERAGE(S16:U16) -> 10761.16368
B17: % Revenue | C17: =+C16/C$5 -> 0.02 | D17: =+D16/D$5 -> 0.01941747573 | E17: =+E16/E$5 -> 0.01849283403 | F17: =+F16/F$5 -> 0.01849283403 | G17: =+G16/G$5 -> 0.01878498466 | J17: % Revenue | K17: =+K16/K$5 -> 0.02 | L17: =+L16/L$5 -> 0.01930501931 | M17: =+M16/M$5 -> 0.01821228236 | N17: =+N16/N$5 -> 0.01821228236 | O17: =+O16/O$5 -> 0.01855385124 | Q17: % Revenue | R17: =+R16/R$5 -> 0.02 | S17: =+S16/S$5 -> 0.01953125 | T17: =+T16/T$5 -> 0.01878004808 | U17: =+U16/U$5 -> 0.01878004808 | V17: =+V16/V$5 -> 0.01901996073
B18: =+Input!B22 -> Other | C18: =IF(Input!C$15=Input!B$86,Input!C$22,Input!D$22) -> 20000 | D18: =+D$5*$C19/D57 -> 21773.9655 | E18: =+E$5*$C19/D57/E57 -> 21773.9655 | F18: =+F$5*$C19/D57/E57/F57 -> 23120.80873 | G18: =AVERAGE(D18:F18) -> 22222.91324 | J18: Other | K18: =+C18 -> 20000 | L18: =+L$5*$C19/L57 -> 22381.75676 | M18: =+M$5*$C19/L57/M57 -> 22381.75676 | N18: =+N$5*$C19/L57/M57/N57 -> 24053.42324 | O18: =AVERAGE(L18:N18) -> 22938.97892 | Q18: Other | R18: =+C18 -> 20000 | S18: =+S$5*$C19/S57 -> 21175.19305 | T18: =+T$5*$C19/S57/T57 -> 21175.19305 | U18: =+U$5*$C19/S57/T57/U57 -> 22216.59599 | V18: =AVERAGE(S18:U18) -> 21522.32736
B19: % Revenue | C19: =+C18/C$5 -> 0.04 | D19: =+D18/D$5 -> 0.03883495146 | E19: =+E18/E$5 -> 0.03698566805 | F19: =+F18/F$5 -> 0.03698566805 | G19: =+G18/G$5 -> 0.03756996932 | J19: % Revenue | K19: =+K18/K$5 -> 0.04 | L19: =+L18/L$5 -> 0.03861003861 | M19: =+M18/M$5 -> 0.03642456473 | N19: =+N18/N$5 -> 0.03642456473 | O19: =+O18/O$5 -> 0.03710770248 | Q19: % Revenue | R19: =+R18/R$5 -> 0.04 | S19: =+S18/S$5 -> 0.0390625 | T19: =+T18/T$5 -> 0.03756009615 | U19: =+U18/U$5 -> 0.03756009615 | V19: =+V18/V$5 -> 0.03803992147
B20: =+Input!B23 -> Total Variable Costs | C20: =+C8+C10+C12+C14+C16+C18 -> 310000 | D20: =+D8+D10+D12+D14+D16+D18 -> 338040.8144 | E20: =+E8+E10+E12+E14+E16+E18 -> 346777.6181 | F20: =+F8+F10+F12+F14+F16+F18 -> 383111.8006 | G20: =AVERAGE(D20:F20) -> 355976.7444 | J20: Total Variable Costs | K20: =+K8+K10+K12+K14+K16+K18 -> 310000 | L20: =+L8+L10+L12+L14+L16+L18 -> 347476.7736 | M20: =+M8+M10+M12+M14+M16+M18 -> 354778.8218 | N20: =+N8+N10+N12+N14+N16+N18 -> 393592.1778 | O20: =AVERAGE(L20:N20) -> 365282.5911 | Q20: Total Variable Costs | R20: =+R8+R10+R12+R14+R16+R18 -> 310000 | S20: =+S8+S10+S12+S14+S16+S18 -> 328744.8721 | T20: =+T8+T10+T12+T14+T16+T18 -> 338829.5578 | U20: =+U8+U10+U12+U14+U16+U18 -> 372755.6016 | V20: =AVERAGE(S20:U20) -> 346776.6772
B21: =+'Expected Results'!B22 -> Total Variable Costs % | C21: =IF(C20=0,0,+C20/C$5) -> 0.62 | D21: =IF(D20=0,0,+D20/D$5) -> 0.6029126214 | E21: =IF(E20=0,0,+E20/E$5) -> 0.5890429958 | F21: =IF(F20=0,0,+F20/F$5) -> 0.6128525196 | G21: =IF(G20=0,0,+G20/G$5) -> 0.6018128775 | J21: Total Variable Costs % | K21: =IF(K20=0,0,+K20/K$5) -> 0.62 | L21: =IF(L20=0,0,+L20/L$5) -> 0.5994208494 | M21: =IF(M20=0,0,+M20/M$5) -> 0.5773748816 | N21: =IF(N20=0,0,+N20/N$5) -> 0.5960242588 | O21: =IF(O20=0,0,+O20/O$5) -> 0.59090676 | Q21: Total Variable Costs % | R21: =IF(R20=0,0,+R20/R$5) -> 0.62 | S21: =IF(S20=0,0,+S20/S$5) -> 0.6064453125 | T21: =IF(T20=0,0,+T20/T$5) -> 0.6010084886 | U21: =IF(U20=0,0,+U20/U$5) -> 0.6301926833 | V21: =IF(V20=0,0,+V20/V$5) -> 0.6129150135
B22: =+'Expected Results'!B23 -> Gross Profit | C22: =+C5-C20 -> 190000 | D22: =+D5-D20 -> 222638.7972 | E22: =+E5-E20 -> 241935.9742 | F22: =+F5-F20 -> 242017.0654 | G22: =+G5-G20 -> 235530.6123 | J22: Gross Profit | K22: =+K5-K20 -> 190000 | L22: =+L5-L20 -> 232210.7264 | M22: =+M5-M20 -> 259689.9282 | N22: =+N5-N20 -> 266770.5038 | O22: =+O5-O20 -> 252890.3861 | Q22: Gross Profit | R22: =+R5-R20 -> 190000 | S22: =+S5-S20 -> 213340.07 | T22: =+T5-T20 -> 224938.782 | U22: =+U5-U20 -> 218739.0499 | V22: =+V5-V20 -> 219005.9673
B23: =+'Expected Results'!B24 -> Gross Profit % | C23: =IF(C22=0,0,+C22/C$5) -> 0.38 | D23: =IF(D22=0,0,+D22/D$5) -> 0.3970873786 | E23: =IF(E22=0,0,+E22/E$5) -> 0.4109570042 | F23: =IF(F22=0,0,+F22/F$5) -> 0.3871474804 | G23: =IF(G22=0,0,+G22/G$5) -> 0.3981871225 | J23: Gross Profit % | K23: =IF(K22=0,0,+K22/K$5) -> 0.38 | L23: =IF(L22=0,0,+L22/L$5) -> 0.4005791506 | M23: =IF(M22=0,0,+M22/M$5) -> 0.4226251184 | N23: =IF(N22=0,0,+N22/N$5) -> 0.4039757412 | O23: =IF(O22=0,0,+O22/O$5) -> 0.40909324 | Q23: Gross Profit % | R23: =IF(R22=0,0,+R22/R$5) -> 0.38 | S23: =IF(S22=0,0,+S22/S$5) -> 0.3935546875 | T23: =IF(T22=0,0,+T22/T$5) -> 0.3989915114 | U23: =IF(U22=0,0,+U22/U$5) -> 0.3698073167 | V23: =IF(V22=0,0,+V22/V$5) -> 0.3870849865
B24: =+'Expected Results'!B25 -> Mark-up Equivalent | C24: =IF(C5=0,0,+C5/C20-1) -> 0.6129032258 | D24: =IF(D5=0,0,+D5/D20-1) -> 0.6586151369 | E24: =IF(E5=0,0,+E5/E20-1) -> 0.6976689428 | F24: =IF(F5=0,0,+F5/F20-1) -> 0.6317139409 | G24: =IF(G5=0,0,+G5/G20-1) -> 0.6616460653 | J24: Mark-up Equivalent | K24: =IF(K5=0,0,+K5/K20-1) -> 0.6129032258 | L24: =IF(L5=0,0,+L5/L20-1) -> 0.6682769726 | M24: =IF(M5=0,0,+M5/M20-1) -> 0.7319769734 | N24: =IF(N5=0,0,+N5/N20-1) -> 0.6777840588 | O24: =IF(O5=0,0,+O5/O20-1) -> 0.6923143678 | Q24: Mark-up Equivalent | R24: =IF(R5=0,0,+R5/R20-1) -> 0.6129032258 | S24: =IF(S5=0,0,+S5/S20-1) -> 0.6489533011 | T24: =IF(T5=0,0,+T5/T20-1) -> 0.6638700102 | U24: =IF(U5=0,0,+U5/U20-1) -> 0.5868162651 | V24: =IF(V5=0,0,+V5/V20-1) -> 0.6315475685
B25: =+Input!B24 -> Fixed Costs | J25: Fixed Costs | Q25: Fixed Costs
B26: =+Input!B25 -> Location | C26: =IF(Input!C$15=Input!B$86,Input!C$25,Input!D$25) -> 40000 | D26: =$C26+$C26*(D$5-$C$5)/$C$5*$C$59 -> 41213.59223 | E26: =$C26+$C26*(E$5-$C$5)/$C$5*$C$59 -> 41774.27184 | F26: =$C26+$C26*(F$5-$C$5)/$C$5*$C$59 -> 42502.57732 | G26: =AVERAGE(D26:F26) -> 41830.14713 | J26: Location | K26: =+C26 -> 40000 | L26: =$C26+$C26*(L$5-$C$5)/$C$5*$C$59 -> 41593.75 | M26: =$C26+$C26*(M$5-$C$5)/$C$5*$C$59 -> 42289.375 | N26: =$C26+$C26*(N$5-$C$5)/$C$5*$C$59 -> 43207.25363 | O26: =AVERAGE(L26:N26) -> 42363.45954 | Q26: Location | R26: =+C26 -> 40000 | S26: =$C26+$C26*(S$5-$C$5)/$C$5*$C$59 -> 40841.69884 | T26: =$C26+$C26*(T$5-$C$5)/$C$5*$C$59 -> 41275.3668 | U26: =$C26+$C26*(U$5-$C$5)/$C$5*$C$59 -> 41829.89303 | V26: =AVERAGE(S26:U26) -> 41315.65289
B27: % Revenue | C27: =+C26/C$5 -> 0.08 | D27: =+D26/D$5 -> 0.07350649351 | E27: =+E26/E$5 -> 0.07095856524 | F27: =+F26/F$5 -> 0.06799010513 | G27: =+G26/G$5 -> 0.07071788147 | J27: % Revenue | K27: =+K26/K$5 -> 0.08 | L27: =+L26/L$5 -> 0.07175202156 | M27: =+M26/M$5 -> 0.06882266185 | N27: =+N26/N$5 -> 0.06542958111 | O27: =+O26/O$5 -> 0.06853010582 | Q27: % Revenue | R27: =+R26/R$5 -> 0.08 | S27: =+S26/S$5 -> 0.07534188034 | T27: =+T26/T$5 -> 0.07321334648 | U27: =+U26/U$5 -> 0.07071897087 | V27: =+V26/V$5 -> 0.07302389582
B28: =+Input!B26 -> Administration | C28: =IF(Input!C$15=Input!B$86,Input!C$26,Input!D$26) -> 30000 | D28: =($C28+$C28*(D$5-$C$5)/$C$5*$C$59)/D58 -> 30910.19417 | E28: =($C28+$C28*(E$5-$C$5)/$C$5*$C$59)/D58/E58 -> 30716.37636 | F28: =($C28+$C28*(F$5-$C$5)/$C$5*$C$59)/D58/E58/F58 -> 29763.70961 | G28: =AVERAGE(D28:F28) -> 30463.42671 | J28: Administration | K28: =+C28 -> 30000 | L28: =($C28+$C28*(L$5-$C$5)/$C$5*$C$59)/L58 -> 31195.3125 | M28: =($C28+$C28*(M$5-$C$5)/$C$5*$C$59)/L58/M58 -> 30973.66333 | N28: =($C28+$C28*(N$5-$C$5)/$C$5*$C$59)/L58/M58/N58 -> 29854.65822 | O28: =AVERAGE(L28:N28) -> 30674.54468 | Q28: Administration | R28: =+C28 -> 30000 | S28: =($C28+$C28*(S$5-$C$5)/$C$5*$C$59)/S58 -> 30631.27413 | T28: =($C28+$C28*(T$5-$C$5)/$C$5*$C$59)/S58/T58 -> 30469.02076 | U28: =($C28+$C28*(U$5-$C$5)/$C$5*$C$59)/S58/T58/U58 -> 29690.73646 | V28: =AVERAGE(S28:U28) -> 30263.67712
B29: % Revenue | C29: =+C28/C$5 -> 0.06 | D29: =+D28/D$5 -> 0.05512987013 | E29: =+E28/E$5 -> 0.05217541562 | F29: =+F28/F$5 -> 0.04761211844 | G29: =+G28/G$5 -> 0.05150134884 | J29: % Revenue | K29: =+K28/K$5 -> 0.06 | L29: =+L28/L$5 -> 0.05381401617 | M29: =+M28/M$5 -> 0.05040722304 | N29: =+N28/N$5 -> 0.04520948724 | O29: =+O28/O$5 -> 0.04962129666 | Q29: % Revenue | R29: =+R28/R$5 -> 0.06 | S29: =+S28/S$5 -> 0.05650641026 | T29: =+T28/T$5 -> 0.0540452853 | U29: =+U28/U$5 -> 0.05019611992 | V29: =+V28/V$5 -> 0.05348993543
B30: =+Input!B27 -> Labor excluding Owner | C30: =IF(Input!C$15=Input!B$86,Input!C$27,Input!D$27) -> 50000 | D30: =($C30+$C30*(D$5-$C$5)/$C$5*$C$59)*$D54/D58+($C32+$C32*(D$5-$C$5)/$C$5*$C$59)*$D54/D58-D32 -> 51516.99029 | E30: =($C30+$C30*(E$5-$C$5)/$C$5*$C$59)*$D54*$E54/D58/E58+($C32+$C32*(E$5-$C$5)/$C$5*$C$59)*$D54*$E54/D58/E58-E32 -> 52729.77941 | F30: =($C30+$C30*(F$5-$C$5)/$C$5*$C$59)*$D54*$E54*F54/D58/E58/F58+($C32+$C32*(F$5-$C$5)/$C$5*$C$59)*$D54*$E54*F54/D58/E58/F58-F32 -> 53649.08657 | G30: =AVERAGE(D30:F30) -> 52631.95209 | J30: Labor excluding Owner | K30: =+C30 -> 50000 | L30: =($C30+$C30*(L$5-$C$5)/$C$5*$C$59)*$D54/L58+($C32+$C32*(L$5-$C$5)/$C$5*$C$59)*$D54/L58-L32 -> 51992.1875 | M30: =($C30+$C30*(M$5-$C$5)/$C$5*$C$59)*$D54*$E54/L58/M58+($C32+$C32*(M$5-$C$5)/$C$5*$C$59)*$D54*$E54/L58/M58-M32 -> 53171.45538 | N30: =($C30+$C30*(N$5-$C$5)/$C$5*$C$59)*$D54*$E54*N54/L58/M58/N58+($C32+$C32*(N$5-$C$5)/$C$5*$C$59)*$D54*$E54*N54/L58/M58/N58-N32 -> 53300.51648 | O30: =AVERAGE(L30:N30) -> 52821.38646 | Q30: Labor excluding Owner | R30: =+C30 -> 50000 | S30: =($C30+$C30*(S$5-$C$5)/$C$5*$C$59)*$D54/S58+($C32+$C32*(S$5-$C$5)/$C$5*$C$59)*$D54/S58-S32 -> 51052.12355 | T30: =($C30+$C30*(T$5-$C$5)/$C$5*$C$59)*$D54*$E54/S58/T58+($C32+$C32*(T$5-$C$5)/$C$5*$C$59)*$D54*$E54/S58/T58-T32 -> 52305.15231 | U30: =($C30+$C30*(U$5-$C$5)/$C$5*$C$59)*$D54*$E54*U54/S58/T58/U58+($C32+$C32*(U$5-$C$5)/$C$5*$C$59)*$D54*$E54*U54/S58/T58/U58-U32 -> 54027.24345 | V30: =AVERAGE(S30:U30) -> 52461.50644
B31: % Revenue | C31: =+C30/C$5 -> 0.1 | D31: =+D30/D$5 -> 0.09188311688 | E31: =+E30/E$5 -> 0.08956779682 | F31: =+F30/F$5 -> 0.08582084349 | G31: =+G30/G$5 -> 0.08897937025 | J31: % Revenue | K31: =+K30/K$5 -> 0.1 | L31: =+L30/L$5 -> 0.08969002695 | M31: =+M30/M$5 -> 0.08653239955 | N31: =+N30/N$5 -> 0.08071400455 | O31: =+O30/O$5 -> 0.08544758248 | Q31: % Revenue | R31: =+R30/R$5 -> 0.1 | S31: =+S30/S$5 -> 0.09417735043 | T31: =+T30/T$5 -> 0.09277773976 | U31: =+U30/U$5 -> 0.09134020621 | V31: =+V30/V$5 -> 0.09272378174
B32: =+Input!B28 -> Labor Owner | C32: =IF(Input!C$15=Input!B$86,Input!C$28,Input!D$28) -> 10000 | D32: =IF((($C32+$C32*(D$5-$C$5)/$C$5*$C$59)*$D54/D58)<=D$60,(($C32+$C32*(D$5-$C$5)/$C$5*$C$59)*$D54/D58),D$60) -> 10303.39806 | E32: =IF((($C32+$C32*(E$5-$C$5)/$C$5*$C$59)*$D54*E54/D58/E58)<=E$60,(($C32+$C32*(E$5-$C$5)/$C$5*$C$59)*$D54*$E54/D58/E58),E$60) -> 10545.95588 | F32: =IF((($C32+$C32*(F$5-$C$5)/$C$5*$C$59)*$D54*E54*F54/D58/E58/F58)<=F$60,(($C32+$C32*(F$5-$C$5)/$C$5*$C$59)*$D54*$E54*F54/D58/E58/F58),F$60) -> 10729.81731 | G32: =AVERAGE(D32:F32) -> 10526.39042 | J32: Labor Owner | K32: =+C32 -> 10000 | L32: =IF((($C32+$C32*(L$5-$C$5)/$C$5*$C$59)*$D54/L58)<=L$60,(($C32+$C32*(L$5-$C$5)/$C$5*$C$59)*$D54/L58),L$60) -> 10398.4375 | M32: =IF((($C32+$C32*(M$5-$C$5)/$C$5*$C$59)*$D54*M54/L58/M58)<=M$60,(($C32+$C32*(M$5-$C$5)/$C$5*$C$59)*$D54*$E54/L58/M58),M$60) -> 10634.29108 | N32: =IF((($C32+$C32*(N$5-$C$5)/$C$5*$C$59)*$D54*M54*N54/L58/M58/N58)<=N$60,(($C32+$C32*(N$5-$C$5)/$C$5*$C$59)*$D54*$E54*N54/L58/M58/N58),N$60) -> 10660.1033 | O32: =AVERAGE(L32:N32) -> 10564.27729 | Q32: Labor Owner | R32: =+C32 -> 10000 | S32: =IF((($C32+$C32*(S$5-$C$5)/$C$5*$C$59)*$D54/S58)<=S$60,(($C32+$C32*(S$5-$C$5)/$C$5*$C$59)*$D54/S58),S$60) -> 10210.42471 | T32: =IF((($C32+$C32*(T$5-$C$5)/$C$5*$C$59)*$D54*T54/S58/T58)<=T$60,(($C32+$C32*(T$5-$C$5)/$C$5*$C$59)*$D54*$E54/S58/T58),T$60) -> 10461.03046 | U32: =IF((($C32+$C32*(U$5-$C$5)/$C$5*$C$59)*$D54*T54*U54/S58/T58/U58)<=U$60,(($C32+$C32*(U$5-$C$5)/$C$5*$C$59)*$D54*$E54*U54/S58/T58/U58),U$60) -> 10805.44869 | V32: =AVERAGE(S32:U32) -> 10492.30129
B33: % Revenue | C33: =+C32/C$5 -> 0.02 | D33: =+D32/D$5 -> 0.01837662338 | E33: =+E32/E$5 -> 0.01791355936 | F33: =+F32/F$5 -> 0.0171641687 | G33: =+G32/G$5 -> 0.01779587405 | J33: % Revenue | K33: =+K32/K$5 -> 0.02 | L33: =+L32/L$5 -> 0.01793800539 | M33: =+M32/M$5 -> 0.01730647991 | N33: =+N32/N$5 -> 0.01614280091 | O33: =+O32/O$5 -> 0.0170895165 | Q33: % Revenue | R33: =+R32/R$5 -> 0.02 | S33: =+S32/S$5 -> 0.01883547009 | T33: =+T32/T$5 -> 0.01855554795 | U33: =+U32/U$5 -> 0.01826804124 | V33: =+V32/V$5 -> 0.01854475635
B34: =+Input!B29 -> Interest Costs | C34: =IF(Input!C$15=Input!B$86,Input!C$29,Input!D$29) -> 0 | D34: =+$C34*D55 -> 0 | E34: =+$C34*D55*E55 -> 0 | F34: =+$C34*D55*E55*F55 -> 0 | G34: =AVERAGE(D34:F34) -> 0 | J34: Interest Costs | K34: =+C34 -> 0 | L34: =+$C34*L55 -> 0 | M34: =+$C34*L55*M55 -> 0 | N34: =+$C34*L55*M55*N55 -> 0 | O34: =AVERAGE(L34:N34) -> 0 | Q34: Interest Costs | R34: =+C34 -> 0 | S34: =+$C34*S55 -> 0 | T34: =+$C34*S55*T55 -> 0 | U34: =+$C34*S55*T55*U55 -> 0 | V34: =AVERAGE(S34:U34) -> 0
B35: % Revenue | C35: =+C34/C$5 -> 0 | D35: =+D34/D$5 -> 0 | E35: =+E34/E$5 -> 0 | F35: =+F34/F$5 -> 0 | G35: =+G34/G$5 -> 0 | J35: % Revenue | K35: =+K34/K$5 -> 0 | L35: =+L34/L$5 -> 0 | M35: =+M34/M$5 -> 0 | N35: =+N34/N$5 -> 0 | O35: =+O34/O$5 -> 0 | Q35: % Revenue | R35: =+R34/R$5 -> 0 | S35: =+S34/S$5 -> 0 | T35: =+T34/T$5 -> 0 | U35: =+U34/U$5 -> 0 | V35: =+V34/V$5 -> 0
B36: =+Input!B30 -> Other | C36: =IF(Input!C$15=Input!B$86,Input!C$30,Input!D$30) -> 0 | D36: =($C36+$C36*(D$5-$C$5)/$C$5*$C$59)/D58 -> 0 | E36: =($C36+$C36*(E$5-$C$5)/$C$5*$C$59)/D58/E58 -> 0 | F36: =($C36+$C36*(F$5-$C$5)/$C$5*$C$59)/D58/E58/F58 -> 0 | G36: =AVERAGE(D36:F36) -> 0 | J36: Other | K36: =+C36 -> 0 | L36: =($C36+$C36*(L$5-$C$5)/$C$5*$C$59)/L58 -> 0 | M36: =($C36+$C36*(M$5-$C$5)/$C$5*$C$59)/L58/M58 -> 0 | N36: =($C36+$C36*(N$5-$C$5)/$C$5*$C$59)/L58/M58/N58 -> 0 | O36: =AVERAGE(L36:N36) -> 0 | Q36: Other | R36: =+C36 -> 0 | S36: =($C36+$C36*(S$5-$C$5)/$C$5*$C$59)/S58 -> 0 | T36: =($C36+$C36*(T$5-$C$5)/$C$5*$C$59)/S58/T58 -> 0 | U36: =($C36+$C36*(U$5-$C$5)/$C$5*$C$59)/S58/T58/U58 -> 0 | V36: =AVERAGE(S36:U36) -> 0
B37: % Revenue | C37: =+C36/C$5 -> 0 | D37: =+D36/D$5 -> 0 | E37: =+E36/E$5 -> 0 | F37: =+F36/F$5 -> 0 | G37: =+G36/G$5 -> 0 | J37: % Revenue | K37: =+K36/K$5 -> 0 | L37: =+L36/L$5 -> 0 | M37: =+M36/M$5 -> 0 | N37: =+N36/N$5 -> 0 | O37: =+O36/O$5 -> 0 | Q37: % Revenue | R37: =+R36/R$5 -> 0 | S37: =+S36/S$5 -> 0 | T37: =+T36/T$5 -> 0 | U37: =+U36/U$5 -> 0 | V37: =+V36/V$5 -> 0
B38: =+Input!B31 -> Total Fixed Costs | C38: =+C26+C28+C30+C32+C36+C34 -> 130000 | D38: =+D26+D28+D30+D32+D36+D34 -> 133944.1748 | E38: =+E26+E28+E30+E32+E36+E34 -> 135766.3835 | F38: =+F26+F28+F30+F32+F36+F34 -> 136645.1908 | G38: =AVERAGE(D38:F38) -> 135451.9164 | J38: Total Fixed Costs | K38: =+K26+K28+K30+K32+K36+K34 -> 130000 | L38: =+L26+L28+L30+L32+L36+L34 -> 135179.6875 | M38: =+M26+M28+M30+M32+M36+M34 -> 137068.7848 | N38: =+N26+N28+N30+N32+N36+N34 -> 137022.5316 | O38: =AVERAGE(L38:N38) -> 136423.668 | Q38: Total Fixed Costs | R38: =+R26+R28+R30+R32+R36+R34 -> 130000 | S38: =+S26+S28+S30+S32+S36+S34 -> 132735.5212 | T38: =+T26+T28+T30+T32+T36+T34 -> 134510.5703 | U38: =+U26+U28+U30+U32+U36+U34 -> 136353.3216 | V38: =AVERAGE(S38:U38) -> 134533.1377
B39: =+'Expected Results'!B40 -> Total Fixed Costs % | C39: =IF(C38=0,0,+C38/C$5) -> 0.26 | D39: =IF(D38=0,0,+D38/D$5) -> 0.2388961039 | E39: =IF(E38=0,0,+E38/E$5) -> 0.230615337 | F39: =IF(F38=0,0,+F38/F$5) -> 0.2185872358 | G39: =IF(G38=0,0,+G38/G$5) -> 0.2289944746 | J39: Total Fixed Costs % | K39: =IF(K38=0,0,+K38/K$5) -> 0.26 | L39: =IF(L38=0,0,+L38/L$5) -> 0.2331940701 | M39: =IF(M38=0,0,+M38/M$5) -> 0.2230687643 | N39: =IF(N38=0,0,+N38/N$5) -> 0.2074958738 | O39: =IF(O38=0,0,+O38/O$5) -> 0.2206885015 | Q39: Total Fixed Costs % | R39: =IF(R38=0,0,+R38/R$5) -> 0.26 | S39: =IF(S38=0,0,+S38/S$5) -> 0.2448611111 | T39: =IF(T38=0,0,+T38/T$5) -> 0.2385919195 | U39: =IF(U38=0,0,+U38/U$5) -> 0.2305233382 | V39: =IF(V38=0,0,+V38/V$5) -> 0.2377823693
B41: =+'Expected Results'!B42 -> Total Expenses | C41: =+C20+C38 -> 440000 | D41: =+D20+D38 -> 471984.9892 | E41: =+E20+E38 -> 482544.0016 | F41: =+F20+F38 -> 519756.9914 | G41: =AVERAGE(D41:F41) -> 491428.6607 | J41: Total Expenses | K41: =+K20+K38 -> 440000 | L41: =+L20+L38 -> 482656.4611 | M41: =+M20+M38 -> 491847.6066 | N41: =+N20+N38 -> 530614.7094 | O41: =AVERAGE(L41:N41) -> 501706.259 | Q41: Total Expenses | R41: =+R20+R38 -> 440000 | S41: =+S20+S38 -> 461480.3933 | T41: =+T20+T38 -> 473340.1281 | U41: =+U20+U38 -> 509108.9232 | V41: =AVERAGE(S41:U41) -> 481309.8149
B43: =+Input!B32 -> Operating Surplus | C43: =+C5-C41 -> 60000 | D43: =+D5-D41 -> 88694.62249 | E43: =+E5-E41 -> 106169.5907 | F43: =+F5-F41 -> 105371.8746 | G43: =AVERAGE(D43:F43) -> 100078.6959 | J43: Operating Surplus | K43: =+K5-K41 -> 60000 | L43: =+L5-L41 -> 97031.03885 | M43: =+M5-M41 -> 122621.1434 | N43: =+N5-N41 -> 129747.9721 | O43: =AVERAGE(L43:N43) -> 116466.7181 | Q43: Operating Surplus | R43: =+R5-R41 -> 60000 | S43: =+S5-S41 -> 80604.54875 | T43: =+T5-T41 -> 90428.21164 | U43: =+U5-U41 -> 82385.72831 | V43: =AVERAGE(S43:U43) -> 84472.82957
B44: =+'Expected Results'!B45 -> Operating Surplus % | C44: =IF(C43=0,0,+C43/C$5) -> 0.12 | D44: =IF(D43=0,0,+D43/D$5) -> 0.1581912747 | E44: =IF(E43=0,0,+E43/E$5) -> 0.1803416671 | F44: =IF(F43=0,0,+F43/F$5) -> 0.1685602446 | G44: =IF(G43=0,0,+G43/G$5) -> 0.1691926479 | J44: Operating Surplus % | K44: =IF(K43=0,0,+K43/K$5) -> 0.12 | L44: =IF(L43=0,0,+L43/L$5) -> 0.1673850805 | M44: =IF(M43=0,0,+M43/M$5) -> 0.199556354 | N44: =IF(N43=0,0,+N43/N$5) -> 0.1964798674 | O44: =IF(O43=0,0,+O43/O$5) -> 0.1884047385 | Q44: Operating Surplus % | R44: =IF(R43=0,0,+R43/R$5) -> 0.12 | S44: =IF(S43=0,0,+S43/S$5) -> 0.1486935764 | T44: =IF(T43=0,0,+T43/T$5) -> 0.1603995919 | U44: =IF(U43=0,0,+U43/U$5) -> 0.1392839785 | V44: =IF(V43=0,0,+V43/V$5) -> 0.1493026172
B46: =+Input!B33 -> Owner Cash Flow | C46: =+C43+C12+C32 -> 120000 | D46: =+D43+D12+D32 -> 148694.6225 | E46: =+E43+E12+E32 -> 167969.5907 | F46: =+F43+F12+F32 -> 170261.8746 | G46: =AVERAGE(D46:F46) -> 162308.6959 | J46: Owner Cash Flow | K46: =+K43+K12+K32 -> 120000 | L46: =+L43+L12+L32 -> 157031.0389 | M46: =+M43+M12+M32 -> 184421.1434 | N46: =+N43+N12+N32 -> 194637.9721 | O46: =AVERAGE(L46:N46) -> 178696.7181 | Q46: Owner Cash Flow | R46: =+R43+R12+R32 -> 120000 | S46: =+S43+S12+S32 -> 140604.5487 | T46: =+T43+T12+T32 -> 152228.2116 | U46: =+U43+U12+U32 -> 147275.7283 | V46: =AVERAGE(S46:U46) -> 146702.8296
B47: =+'Expected Results'!B48 -> Owner Cash Flow % | C47: =IF(C46=0,0,+C46/C$5) -> 0.24 | D47: =IF(D46=0,0,+D46/D$5) -> 0.2652042618 | E47: =IF(E46=0,0,+E46/E$5) -> 0.2853163115 | F47: =IF(F46=0,0,+F46/F$5) -> 0.272362842 | G47: =IF(G46=0,0,+G46/G$5) -> 0.27439844 | J47: Owner Cash Flow % | K47: =IF(K46=0,0,+K46/K$5) -> 0.24 | L47: =IF(L46=0,0,+L46/L$5) -> 0.2708891236 | M47: =IF(M46=0,0,+M46/M$5) -> 0.3001310375 | N47: =IF(N46=0,0,+N46/N$5) -> 0.2947440514 | O47: =IF(O46=0,0,+O46/O$5) -> 0.2890723547 | Q47: Owner Cash Flow % | R47: =IF(R46=0,0,+R46/R$5) -> 0.24 | S47: =IF(S46=0,0,+S46/S$5) -> 0.2593773371 | T47: =IF(T46=0,0,+T46/T$5) -> 0.2700190857 | U47: =IF(U46=0,0,+U46/U$5) -> 0.2489891125 | V47: =IF(V46=0,0,+V46/V$5) -> 0.2592918517
B49: Forecast | J49: Forecast | Q49: Forecast
B50: =+Input!B38 -> Relative Indicator | C50: =+'Expected Results'!C5 -> Current Year | D50: =+'Expected Results'!D5 -> Year 1 | E50: =+'Expected Results'!E5 -> Year 2 | F50: =+'Expected Results'!F5 -> Year 3 | J50: =+$B50 -> Relative Indicator | K50: =+C50 -> Current Year | L50: =+D50 -> Year 1 | M50: =+E50 -> Year 2 | N50: =+F50 -> Year 3 | Q50: =+$B50 -> Relative Indicator | R50: =+C50 -> Current Year | S50: =+D50 -> Year 1 | T50: =+E50 -> Year 2 | U50: =+F50 -> Year 3
B51: =+Input!B39 -> Level of Competition | C51: 1 | D51: =+Input!C39 -> 1.03 | E51: =+Input!D39 -> 1 | F51: =+Input!E39 -> 0.97 | J51: =+$B51 -> Level of Competition | K51: 1 | L51: =D51-(ABS(1-D51)*$K$2) -> 1.024 | M51: =E51-(ABS(1-E51)*$K$2) -> 1 | N51: =F51-(ABS(1-F51)*$K$2) -> 0.964 | Q51: =+$B51 -> Level of Competition | R51: 1 | S51: =D51+(ABS(1-D51)*$R$2) -> 1.036 | T51: =E51+(ABS(1-E51)*$R$2) -> 1 | U51: =F51+(ABS(1-F51)*$R$2) -> 0.976
B52: =+Input!B40 -> Market Strength | C52: 1 | D52: =+Input!C40 -> 1.05 | E52: =+Input!D40 -> 1 | F52: =+Input!E40 -> 1 | J52: =+$B52 -> Market Strength | K52: 1 | L52: =D52+(ABS(1-D52)*$K$2) -> 1.06 | M52: =E52+(ABS(1-E52)*$K$2) -> 1 | N52: =F52+(ABS(1-F52)*$K$2) -> 1 | Q52: =+$B52 -> Market Strength | R52: 1 | S52: =D52-(ABS(1-D52)*$R$2) -> 1.04 | T52: =E52-(ABS(1-E52)*$R$2) -> 1 | U52: =F52-(ABS(1-F52)*$R$2) -> 1
B53: =+Input!B41 -> Materials & Supplies Costs | C53: 1 | D53: =+Input!C41 -> 1.05 | E53: =+Input!D41 -> 1.05 | F53: =+Input!E41 -> 1 | J53: Materials & Supplies Costs | K53: 1 | L53: =D53-(ABS(1-D53)*$K$2) -> 1.04 | M53: =E53-(ABS(1-E53)*$K$2) -> 1.04 | N53: 1 | Q53: Materials & Supplies Costs | R53: 1 | S53: =D53+(ABS(1-D53)*$R$2) -> 1.06 | T53: =E53+(ABS(1-E53)*$R$2) -> 1.06 | U53: 1
B54: =+Input!B42 -> Labor Costs | C54: 1 | D54: =+Input!C42 -> 1 | E54: =+Input!D42 -> 1.03 | F54: =+Input!E42 -> 1.05 | J54: Labor Costs | K54: 1 | L54: =D54-(ABS(1-D54)*$K$2) -> 1 | M54: 1.024 | N54: 1.04 | Q54: Labor Costs | R54: 1 | S54: =D54+(ABS(1-D54)*$R$2) -> 1 | T54: 1.036 | U54: 1.06
B55: =+Input!B43 -> Interest Rates | C55: 1 | D55: =+Input!C43 -> 1 | E55: =+Input!D43 -> 1.05 | F55: =+Input!E43 -> 0.95 | J55: Interest Rates | K55: 1 | L55: =D55-(ABS(1-D55)*$K$2) -> 1 | M55: 1.04 | N55: 0.94 | Q55: Interest Rates | R55: 1 | S55: =D55+(ABS(1-D55)*$R$2) -> 1 | T55: 1.06 | U55: 0.96
B56: =+Input!B44 -> Business Market Position | C56: 1 | D56: =+Input!C44 -> 1.1 | E56: =+Input!D44 -> 1.05 | F56: =+Input!E44 -> 1.03 | J56: Business Market Position | K56: 1 | L56: =D56+(ABS(1-D56)*$K$2) -> 1.12 | M56: =E56+(ABS(1-E56)*$K$2) -> 1.06 | N56: 1.036 | Q56: Business Market Position | R56: 1 | S56: =D56-(ABS(1-D56)*$R$2) -> 1.08 | T56: =E56-(ABS(1-E56)*$R$2) -> 1.04 | U56: 1.024
B57: =+Input!B45 -> Variable Costs Efficiency | C57: 1 | D57: =+Input!C45 -> 1.03 | E57: =+Input!D45 -> 1.05 | F57: =+Input!E45 -> 1 | J57: Variable Costs Efficiency | K57: 1 | L57: =D57+(ABS(1-D57)*$K$2) -> 1.036 | M57: 1.06 | N57: 1 | Q57: Variable Costs Efficiency | R57: 1 | S57: =D57-(ABS(1-D57)*$R$2) -> 1.024 | T57: 1.04 | U57: 1
B58: =+Input!B46 -> Fixed Costs Efficiency | C58: 1 | D58: =+Input!C46 -> 1 | E58: =+Input!D46 -> 1.02 | F58: =+Input!E46 -> 1.05 | J58: Fixed Costs Efficiency | K58: 1 | L58: =D58+(ABS(1-D58)*$K$2) -> 1 | M58: 1.024 | N58: 1.06 | Q58: Fixed Costs Efficiency | R58: 1 | S58: =D58-(ABS(1-D58)*$R$2) -> 1 | T58: 1.016 | U58: 1.04
B59: =+Input!B48 -> Fixed Costs Flow-on | C59: =+Input!C48 -> 0.25 | J59: Fixed Costs Flow-on | K59: =$C$59*(1-$K$2) -> 0.2 | Q59: Fixed Costs Flow-on | R59: =$C$59*(1+$R$2) -> 0.3
B60: Owners Max Business Labor Earnings | C60: =+D74 -> 60000 | D60: =+C60*D$54 -> 60000 | E60: =+D60*$E$54 -> 61800 | F60: =+E60*$F$54 -> 64890 | J60: =+B60 -> Owners Max Business Labor Earnings | K60: =+L74 -> 60000 | L60: =+K60*L$54 -> 60000 | M60: =+L60*$E$54 -> 61800 | N60: =+M60*$F$54 -> 64890 | Q60: =+B60 -> Owners Max Business Labor Earnings | R60: =+C60 -> 60000 | S60: =+R60*S$54 -> 60000 | T60: =+S60*$E$54 -> 61800 | U60: =+T60*$F$54 -> 64890
B61: =+B5 -> Business Revenue | C61: =+C5 -> 500000 | D61: =+D5 -> 560679.6117 | E61: =+E5 -> 588713.5922 | F61: =+F5 -> 625128.866 | J61: =+J5 -> Business Revenue | K61: =+K5 -> 500000 | L61: =+L5 -> 579687.5 | M61: =+M5 -> 614468.75 | N61: =+N5 -> 660362.6815 | Q61: =+Q5 -> Business Revenue | R61: =+R5 -> 500000 | S61: =+S5 -> 542084.9421 | T61: =+T5 -> 563768.3398 | U61: =+U5 -> 591494.6516
B62: =+B20 -> Total Variable Costs | C62: 310000 | D62: 338040.8144 | E62: 346777.6181 | F62: 383111.8006 | J62: =+J20 -> Total Variable Costs | K62: 310000 | L62: 347476.7736 | M62: 354778.8218 | N62: 393592.1778 | Q62: =+Q20 -> Total Variable Costs | R62: 310000 | S62: 328744.8721 | T62: 338829.5578 | U62: 372755.6016
B63: Total Variable Costs % | C63: 0.62 | D63: 0.6029126214 | E63: 0.5890429958 | F63: 0.6128525196 | J63: Total Variable Costs % | K63: 0.62 | L63: 0.5994208494 | M63: 0.5773748816 | N63: 0.5960242588 | Q63: Total Variable Costs % | R63: 0.62 | S63: 0.6064453125 | T63: 0.6010084886 | U63: 0.6301926833
B64: =+B38 -> Total Fixed Costs | C64: 130000 | D64: 133944.1748 | E64: 135766.3835 | F64: 136645.1908 | J64: =+J38 -> Total Fixed Costs | K64: 130000 | L64: 135179.6875 | M64: 137068.7848 | N64: 137022.5316 | Q64: =+Q38 -> Total Fixed Costs | R64: 130000 | S64: 132735.5212 | T64: 134510.5703 | U64: 136353.3216
B65: Total Fixed Costs % | C65: 0.26 | D65: 0.2388961039 | E65: 0.230615337 | F65: 0.2185872358 | J65: Total Fixed Costs % | K65: 0.26 | L65: 0.2331940701 | M65: 0.2230687643 | N65: 0.2074958738 | Q65: Total Fixed Costs % | R65: 0.26 | S65: 0.2448611111 | T65: 0.2385919195 | U65: 0.2305233382
B66: =+B43 -> Operating Surplus | C66: 60000 | D66: 88694.62249 | E66: 106169.5907 | F66: 105371.8746 | J66: =+J43 -> Operating Surplus | K66: 60000 | L66: 97031.03885 | M66: 122621.1434 | N66: 129747.9721 | Q66: =+Q43 -> Operating Surplus | R66: 60000 | S66: 80604.54875 | T66: 90428.21164 | U66: 82385.72831
B67: Operating Surplus % | C67: 0.12 | D67: 0.1581912747 | E67: 0.1803416671 | F67: 0.1685602446 | J67: Operating Surplus % | K67: 0.12 | L67: 0.1673850805 | M67: 0.199556354 | N67: 0.1964798674 | Q67: Operating Surplus % | R67: 0.12 | S67: 0.1486935764 | T67: 0.1603995919 | U67: 0.1392839785
B68: =+B46 -> Owner Cash Flow | C68: 120000 | D68: 148694.6225 | E68: 167969.5907 | F68: 170261.8746 | J68: =+J46 -> Owner Cash Flow | K68: 120000 | L68: 157031.0389 | M68: 184421.1434 | N68: 194637.9721 | Q68: =+Q46 -> Owner Cash Flow | R68: 120000 | S68: 140604.5487 | T68: 152228.2116 | U68: 147275.7283
B69: Owner Cash Flow % | C69: 0.24 | D69: 0.2652042618 | E69: 0.2853163115 | F69: 0.272362842 | J69: Owner Cash Flow % | K69: 0.24 | L69: 0.2708891236 | M69: 0.3001310375 | N69: 0.2947440514 | Q69: Owner Cash Flow % | R69: 0.24 | S69: 0.2593773371 | T69: 0.2700190857 | U69: 0.2489891125
B71: Investment | J71: Investment | Q71: Investment
B72: Owners Current Business Labor Earnings | D72: =+C12+C32 -> 60000 | J72: Owners Current Business Labor Earnings | L72: =+K12+K32 -> 60000 | Q72: Owners Current Business Labor Earnings | S72: =+R12+R32 -> 60000
B73: =+Input!B53 -> Owners Time Commitment to Business | D73: =+Input!C53 -> 1 | J73: =+B73 -> Owners Time Commitment to Business | L73: =+D73 -> 1 | Q73: =+B73 -> Owners Time Commitment to Business | S73: =+D73 -> 1
B74: Owners Maximum Business Labor Earnings | D74: =+D72/D73 -> 60000 | J74: Owners Maximum Business Labor Earnings | L74: =+L72/L73 -> 60000 | Q74: Owners Maximum Business Labor Earnings | S74: =+S72/S73 -> 60000
B75: =+Input!B54 -> Owners External Earning Power | D75: =+Input!C54 -> 60000 | J75: =+B75 -> Owners External Earning Power | L75: =+D75 -> 60000 | Q75: =+B75 -> Owners External Earning Power | S75: =+D75 -> 60000
B76: =+Input!B55 -> Replacement Value of Business Assets | D76: =+Input!C55 -> 100000 | J76: Replacement Value of Business Assets | L76: =+D76 -> 100000 | Q76: Replacement Value of Business Assets | S76: =+D76 -> 100000
B77: =+Input!B56 -> Life of Assets (years) | D77: =+Input!C56 -> 8 | J77: Life of Assets (years) | L77: =+D77 -> 8 | Q77: Life of Assets (years) | S77: =+D77 -> 8
B78: =+Input!B57 -> Market Value of Property | D78: =+Input!C57 -> 0 | J78: Market Value of Property | L78: =+D78 -> 0 | Q78: Market Value of Property | S78: =+D78 -> 0
B79: =+Input!B58 -> Other Investment in Business | D79: =+Input!C58 -> 190022.5831 | J79: Other Investment in Business | L79: =+D79 -> 190022.5831 | Q79: Other Investment in Business | S79: =+D79 -> 190022.5831
B80: =+Input!B59 -> Total Investment | D80: =+D76+D78+D79 -> 290022.5831 | J80: Total Investment | L80: =+L76+L78+L79 -> 290022.5831 | Q80: Total Investment | S80: =+S76+S78+S79 -> 290022.5831
B81: =+Input!B60 -> Financed Amount | D81: =+Input!C60 -> 0 | J81: =+$B81 -> Financed Amount | L81: =+$D81 -> 0 | Q81: =+$B81 -> Financed Amount | S81: =+$D81 -> 0
B82: =+Input!B61 -> Equity Investment | D82: =+D80-D81 -> 290022.5831 | J82: =+$B82 -> Equity Investment | L82: =+$D82 -> 290022.5831 | Q82: =+$B82 -> Equity Investment | S82: =+$D82 -> 290022.5831
B84: Return | J84: Return | Q84: Return
C85: =+C4 -> Current Year | D85: Year 1 | E85: Year 2 | F85: Year 3 | G85: =+'Expected Results'!G5 -> 3 Year Average | K85: =+K4 -> Current Year | L85: Year 1 | M85: Year 2 | N85: Year 3 | O85: =+G85 -> 3 Year Average | R85: =+R4 -> Current Year | S85: Year 1 | T85: Year 2 | U85: Year 3 | V85: =+G85 -> 3 Year Average
B86: =+B5 -> Business Revenue | C86: 500000 | D86: 560679.6117 | E86: 588713.5922 | F86: 625128.866 | G86: =AVERAGE(D86:F86) -> 591507.3566 | J86: =+J5 -> Business Revenue | K86: 500000 | L86: 579687.5 | M86: 614468.75 | N86: 660362.6815 | O86: =AVERAGE(L86:N86) -> 618172.9772 | Q86: =+Q5 -> Business Revenue | R86: 500000 | S86: 542084.9421 | T86: 563768.3398 | U86: 591494.6516 | V86: =AVERAGE(S86:U86) -> 565782.6445
B87: =+B20 -> Total Variable Costs | C87: =+C20 -> 310000 | D87: =+D20 -> 338040.8144 | E87: =+E20 -> 346777.6181 | F87: =+F20 -> 383111.8006 | G87: =AVERAGE(D87:F87) -> 355976.7444 | J87: =+J20 -> Total Variable Costs | K87: =+K20 -> 310000 | L87: =+L20 -> 347476.7736 | M87: =+M20 -> 354778.8218 | N87: =+N20 -> 393592.1778 | O87: =AVERAGE(L87:N87) -> 365282.5911 | Q87: =+Q20 -> Total Variable Costs | R87: =+R20 -> 310000 | S87: =+S20 -> 328744.8721 | T87: =+T20 -> 338829.5578 | U87: =+U20 -> 372755.6016 | V87: =AVERAGE(S87:U87) -> 346776.6772
B88: =+B38 -> Total Fixed Costs | C88: =+C38 -> 130000 | D88: =+D38 -> 133944.1748 | E88: =+E38 -> 135766.3835 | F88: =+F38 -> 136645.1908 | G88: =AVERAGE(D88:F88) -> 135451.9164 | J88: =+J38 -> Total Fixed Costs | K88: =+K38 -> 130000 | L88: =+L38 -> 135179.6875 | M88: =+M38 -> 137068.7848 | N88: =+N38 -> 137022.5316 | O88: =AVERAGE(L88:N88) -> 136423.668 | Q88: =+Q38 -> Total Fixed Costs | R88: =+R38 -> 130000 | S88: =+S38 -> 132735.5212 | T88: =+T38 -> 134510.5703 | U88: =+U38 -> 136353.3216 | V88: =AVERAGE(S88:U88) -> 134533.1377
B90: =+B43 -> Operating Surplus | C90: =+C43 -> 60000 | D90: =+D43 -> 88694.62249 | E90: =+E43 -> 106169.5907 | F90: =+F43 -> 105371.8746 | G90: =AVERAGE(D90:F90) -> 100078.6959 | J90: =+J43 -> Operating Surplus | K90: =+K43 -> 60000 | L90: =+L43 -> 97031.03885 | M90: =+M43 -> 122621.1434 | N90: =+N43 -> 129747.9721 | O90: =AVERAGE(L90:N90) -> 116466.7181 | Q90: =+Q43 -> Operating Surplus | R90: =+R43 -> 60000 | S90: =+S43 -> 80604.54875 | T90: =+T43 -> 90428.21164 | U90: =+U43 -> 82385.72831 | V90: =AVERAGE(S90:U90) -> 84472.82957
B91: Business Surplus on Sales | C91: =+C90/C$86 -> 0.12 | D91: =+D90/D$86 -> 0.1581912747 | E91: =+E90/E$86 -> 0.1803416671 | F91: =+F90/F$86 -> 0.1685602446 | G91: =+G90/G$86 -> 0.1691926479 | J91: Business Surplus on Sales | K91: =+K90/K$86 -> 0.12 | L91: =+L90/L$86 -> 0.1673850805 | M91: =+M90/M$86 -> 0.199556354 | N91: =+N90/N$86 -> 0.1964798674 | O91: =+O90/O$86 -> 0.1884047385 | Q91: Business Surplus on Sales | R91: =+R90/R$86 -> 0.12 | S91: =+S90/S$86 -> 0.1486935764 | T91: =+T90/T$86 -> 0.1603995919 | U91: =+U90/U$86 -> 0.1392839785 | V91: =+V90/V$86 -> 0.1493026172
B92: =+B46 -> Owner Cash Flow | C92: =+C46 -> 120000 | D92: =+D46 -> 148694.6225 | E92: =+E46 -> 167969.5907 | F92: =+F46 -> 170261.8746 | G92: =AVERAGE(D92:F92) -> 162308.6959 | J92: =+J46 -> Owner Cash Flow | K92: =+K46 -> 120000 | L92: =+L46 -> 157031.0389 | M92: =+M46 -> 184421.1434 | N92: =+N46 -> 194637.9721 | O92: =AVERAGE(L92:N92) -> 178696.7181 | Q92: =+Q46 -> Owner Cash Flow | R92: =+R46 -> 120000 | S92: =+S46 -> 140604.5487 | T92: =+T46 -> 152228.2116 | U92: =+U46 -> 147275.7283 | V92: =AVERAGE(S92:U92) -> 146702.8296
B93: Owner Cash Flow on Sales | C93: =+C92/C$86 -> 0.24 | D93: =+D92/D$86 -> 0.2652042618 | E93: =+E92/E$86 -> 0.2853163115 | F93: =+F92/F$86 -> 0.272362842 | G93: =+G92/G$86 -> 0.27439844 | J93: Owner Cash Flow on Sales | K93: =+K92/K$86 -> 0.24 | L93: =+L92/L$86 -> 0.2708891236 | M93: =+M92/M$86 -> 0.3001310375 | N93: =+N92/N$86 -> 0.2947440514 | O93: =+O92/O$86 -> 0.2890723547 | Q93: Owner Cash Flow on Sales | R93: =+R92/R$86 -> 0.24 | S93: =+S92/S$86 -> 0.2593773371 | T93: =+T92/T$86 -> 0.2700190857 | U93: =+U92/U$86 -> 0.2489891125 | V93: =+V92/V$86 -> 0.2592918517
B94: LESS | J94: LESS | Q94: LESS
B95: =+'Expected Results'!B50 -> Depreciation Allowance | C95: =+D76/D77 -> 12500 | D95: =$C95+$C95*(D$5-$C$5)/$C$5*$C$59 -> 12879.24757 | E95: =$C95+$C95*(E$5-$C$5)/$C$5*$C$59 -> 13054.45995 | F95: =$C95+$C95*(F$5-$C$5)/$C$5*$C$59 -> 13282.05541 | G95: =AVERAGE(D95:F95) -> 13071.92098 | J95: =+B95 -> Depreciation Allowance | K95: =+L76/L77 -> 12500 | L95: =$C95+$C95*(L$5-$C$5)/$C$5*$C$59 -> 12998.04688 | M95: =$C95+$C95*(M$5-$C$5)/$C$5*$C$59 -> 13215.42969 | N95: =$C95+$C95*(N$5-$C$5)/$C$5*$C$59 -> 13502.26676 | O95: =AVERAGE(L95:N95) -> 13238.58111 | Q95: =+B95 -> Depreciation Allowance | R95: =+S76/S77 -> 12500 | S95: =$C95+$C95*(S$5-$C$5)/$C$5*$C$59 -> 12763.03089 | T95: =$C95+$C95*(T$5-$C$5)/$C$5*$C$59 -> 12898.55212 | U95: =$C95+$C95*(U$5-$C$5)/$C$5*$C$59 -> 13071.84157 | V95: =AVERAGE(S95:U95) -> 12911.14153
B96: =+'Expected Results'!B51 -> Owners External Earning Power | C96: =+D75 -> 60000 | D96: =+C96*D$54 -> 60000 | E96: =+D96*E$54 -> 61800 | F96: =+E96*F$54 -> 64890 | G96: =AVERAGE(D96:F96) -> 62230 | J96: =+B96 -> Owners External Earning Power | K96: =+L75 -> 60000 | L96: =+K96*L$54 -> 60000 | M96: =+L96*M$54 -> 61440 | N96: =+M96*N$54 -> 63897.6 | O96: =AVERAGE(L96:N96) -> 61779.2 | Q96: =+Q75 -> Owners External Earning Power | R96: =+S75 -> 60000 | S96: =+R96*S$54 -> 60000 | T96: =+S96*T$54 -> 62160 | U96: =+T96*U$54 -> 65889.6 | V96: =AVERAGE(S96:U96) -> 62683.2
B97: =+'Expected Results'!B52 -> Business Return | C97: =+C92-C95-C96 -> 47500 | D97: =+D92-D95-D96 -> 75815.37492 | E97: =+E92-E95-E96 -> 93115.13073 | F97: =+F92-F95-F96 -> 92089.81914 | G97: =AVERAGE(D97:F97) -> 87006.77493 | J97: =+B97 -> Business Return | K97: =+K92-K95-K96 -> 47500 | L97: =+L92-L95-L96 -> 84032.99198 | M97: =+M92-M95-M96 -> 109765.7137 | N97: =+N92-N95-N96 -> 117238.1054 | O97: =AVERAGE(L97:N97) -> 103678.937 | Q97: =+B97 -> Business Return | R97: =+R92-R95-R96 -> 47500 | S97: =+S92-S95-S96 -> 67841.51786 | T97: =+T92-T95-T96 -> 77169.65952 | U97: =+U92-U95-U96 -> 68314.28674 | V97: =AVERAGE(S97:U97) -> 71108.48804
B98: =+'Expected Results'!B53 -> Return on Sales | C98: =+C97/C86 -> 0.095 | D98: =+D97/D86 -> 0.1352204955 | E98: =+E97/E86 -> 0.1581671155 | F98: =+F97/F86 -> 0.1473133367 | G98: =+G97/G86 -> 0.1470933099 | J98: =+B98 -> Return on Sales | K98: =+K97/K86 -> 0.095 | L98: =+L97/L86 -> 0.1449625738 | M98: =+M97/M86 -> 0.1786351442 | N98: =+N97/N86 -> 0.1775359339 | O98: =+O97/O86 -> 0.1677183262 | Q98: =+B98 -> Return on Sales | R98: =+R97/R86 -> 0.095 | S98: =+S97/S86 -> 0.1251492388 | T98: =+T97/T86 -> 0.136881861 | U98: =+U97/U86 -> 0.115494344 | V98: =+V97/V86 -> 0.1256816354
B99: =+'Expected Results'!B55 -> Return on Total Investment | C99: =+C97/$D80 -> 0.1637803494 | D99: =+D97/$D80 -> 0.2614119704 | E99: =+E97/$D80 -> 0.3210616557 | F99: =+F97/$D80 -> 0.3175263738 | G99: =+G97/$D80 -> 0.3 | J99: =+B99 -> Return on Total Investment | K99: =+K97/$D80 -> 0.1637803494 | L99: =+L97/$D80 -> 0.2897463745 | M99: =+M97/$D80 -> 0.3784729884 | N99: =+N97/$D80 -> 0.4042378497 | O99: =+O97/$D80 -> 0.3574857376 | Q99: =+B99 -> Return on Total Investment | R99: =+R97/$D80 -> 0.1637803494 | S99: =+S97/$D80 -> 0.2339180526 | T99: =+T97/$D80 -> 0.2660815537 | U99: =+U97/$D80 -> 0.2355481632 | V99: =+V97/$D80 -> 0.2451825899

Sheet Scratch (hidden)
B25: 0
